Workbook

Sheet KSPS Dose-Response

Sheet Results
D2: Kinase Selectivity Profiling Systems (KPS)
D3: Dose-Response Data Analysis Workbook
A6: Luminescence
B7: Emission Filter: | D7: None
B8: Integration Time(s): | D8: 0.3
B9: Reading: | D9: 1 | F9: 1 | G9: 2 | H9: 3 | I9: 4 | J9: 5 | K9: 6 | L9: 7 | M9: 8 | N9: 9 | O9: 10 | P9: 11 | Q9: 12 | R9: 13 | S9: 14 | T9: 15 | U9: 16 | V9: 17 | W9: 18 | X9: 19 | Y9: 20 | Z9: 21 | AA9: 22 | AB9: 23 | AC9: 24
E10: A | F10: 33569 | G10: 32851 | H10: 30866 | I10: 29803 | J10: 33959 | K10: 33012 | L10: 33213 | M10: 32638 | N10: 30846 | O10: 32598 | P10: 31266 | Q10: 30629 | R10: 29204 | S10: 31457 | T10: 33718 | U10: 32622 | V10: 32890 | W10: 30177 | X10: 33846 | Y10: 32425 | Z10: 32795 | AA10: 30112 | AB10: 734 | AC10: 486
E11: B | F11: 10872 | G11: 32299 | H11: 31905 | I11: 30761 | J11: 178 | K11: 146 | L11: 144 | M11: 118 | N11: 146 | O11: 134 | P11: 148 | Q11: 100 | R11: 138 | S11: 104 | T11: 112 | U11: 132 | V11: 152 | W11: 126 | X11: 150 | Y11: 132 | Z11: 154 | AA11: 128 | AB11: 14 | AC11: 6
E12: C | F12: 878 | G12: 900 | H12: 1020 | I12: 1066 | J12: 2438 | K12: 2712 | L12: 5035 | M12: 5244 | N12: 7618 | O12: 7908 | P12: 9218 | Q12: 7334 | R12: 8857 | S12: 9336 | T12: 10824 | U12: 9889 | V12: 12219 | W12: 11433 | X12: 13171 | Y12: 13145 | Z12: 13119 | AA12: 10935 | AB12: 526 | AC12: 526
E13: D | F13: 7045 | G13: 7848 | H13: 1818 | I13: 2632 | J13: 54 | K13: 32 | L13: 64 | M13: 74 | N13: 46 | O13: 64 | P13: 56 | Q13: 44 | R13: 60 | S13: 68 | T13: 76 | U13: 46 | V13: 66 | W13: 70 | X13: 96 | Y13: 56 | Z13: 80 | AA13: 74 | AB13: 28 | AC13: 8
E14: E | F14: 12622 | G14: 12796 | H14: 11433 | I14: 10626 | J14: 13123 | K14: 13241 | L14: 14014 | M14: 13249 | N14: 12403 | O14: 13503 | P14: 13181 | Q14: 12553 | R14: 12043 | S14: 12325 | T14: 13325 | U14: 11782 | V14: 12201 | W14: 12415 | X14: 12752 | Y14: 12357 | Z14: 13407 | AA14: 12391 | AB14: 556 | AC14: 526
E15: F | F15: 11700 | G15: 12932 | H15: 12852 | I15: 12840 | J15: 180 | K15: 124 | L15: 130 | M15: 96 | N15: 104 | O15: 100 | P15: 90 | Q15: 122 | R15: 108 | S15: 110 | T15: 88 | U15: 106 | V15: 78 | W15: 90 | X15: 98 | Y15: 74 | Z15: 76 | AA15: 96 | AB15: 16 | AC15: 6
E16: G | F16: 25210 | G16: 25043 | H16: 23712 | I16: 19877 | J16: 22887 | K16: 26575 | L16: 25804 | M16: 25011 | N16: 25489 | O16: 26653 | P16: 24880 | Q16: 26418 | R16: 25627 | S16: 26266 | T16: 28043 | U16: 22191 | V16: 26179 | W16: 22935 | X16: 22042 | Y16: 23323 | Z16: 22879 | AA16: 21165 | AB16: 1378 | AC16: 472
E17: H | F17: 15468 | G17: 17328 | H17: 26979 | I17: 21517 | J17: 186 | K17: 166 | L17: 164 | M17: 136 | N17: 134 | O17: 110 | P17: 122 | Q17: 122 | R17: 150 | S17: 134 | T17: 162 | U17: 88 | V17: 132 | W17: 126 | X17: 130 | Y17: 104 | Z17: 100 | AA17: 96 | AB17: 38 | AC17: 14
E18: I | F18: 26513 | G18: 25910 | H18: 25633 | I18: 25461 | J18: 29817 | K18: 29190 | L18: 31716 | M18: 30012 | N18: 28772 | O18: 30739 | P18: 28658 | Q18: 29174 | R18: 28041 | S18: 28995 | T18: 28967 | U18: 24949 | V18: 28220 | W18: 24822 | X18: 26780 | Y18: 27169 | Z18: 26679 | AA18: 24415 | AB18: 1312 | AC18: 574
E19: J | F19: 2634 | G19: 3276 | H19: 22909 | I19: 27178 | J19: 188 | K19: 142 | L19: 154 | M19: 124 | N19: 110 | O19: 132 | P19: 122 | Q19: 102 | R19: 110 | S19: 96 | T19: 100 | U19: 100 | V19: 78 | W19: 100 | X19: 118 | Y19: 72 | Z19: 100 | AA19: 98 | AB19: 22 | AC19: 4
E20: K | F20: 14946 | G20: 13746 | H20: 14604 | I20: 13259 | J20: 16344 | K20: 15502 | L20: 17384 | M20: 16530 | N20: 15708 | O20: 16957 | P20: 16396 | Q20: 15977 | R20: 15500 | S20: 16771 | T20: 17130 | U20: 14507 | V20: 16334 | W20: 14850 | X20: 16354 | Y20: 16025 | Z20: 15688 | AA20: 14602 | AB20: 1336 | AC20: 550
E21: L | F21: 13505 | G21: 13449 | H21: 14981 | I21: 15424 | J21: 194 | K21: 152 | L21: 176 | M21: 140 | N21: 152 | O21: 122 | P21: 128 | Q21: 148 | R21: 116 | S21: 132 | T21: 134 | U21: 130 | V21: 138 | W21: 152 | X21: 144 | Y21: 130 | Z21: 108 | AA21: 116 | AB21: 30 | AC21: 10
E22: M | F22: 42323 | G22: 39111 | H22: 36006 | I22: 34152 | J22: 43986 | K22: 42424 | L22: 46306 | M22: 44272 | N22: 44052 | O22: 45013 | P22: 42251 | Q22: 44626 | R22: 36223 | S22: 43889 | T22: 43986 | U22: 41526 | V22: 43215 | W22: 38906 | X22: 45192 | Y22: 45667 | Z22: 48183 | AA22: 44214 | AB22: 588 | AC22: 488
E23: N | F23: 36217 | G23: 32116 | H23: 39522 | I23: 36346 | J23: 272 | K23: 208 | L23: 218 | M23: 218 | N23: 214 | O23: 166 | P23: 200 | Q23: 178 | R23: 144 | S23: 168 | T23: 130 | U23: 170 | V23: 172 | W23: 172 | X23: 184 | Y23: 186 | Z23: 166 | AA23: 150 | AB23: 8 | AC23: 6
E24: O | F24: 23694 | G24: 23590 | H24: 22213 | I24: 19912 | J24: 23855 | K24: 23690 | L24: 24385 | M24: 25417 | N24: 25669 | O24: 25186 | P24: 20263 | Q24: 21629 | R24: 22745 | S24: 23375 | T24: 25200 | U24: 21286 | V24: 24734 | W24: 19472 | X24: 24479 | Y24: 24302 | Z24: 26416 | AA24: 24100 | AB24: 494 | AC24: 552
E25: P | F25: 18590 | G25: 17946 | H25: 24413 | I25: 23698 | J25: 162 | K25: 108 | L25: 106 | M25: 78 | N25: 86 | O25: 64 | P25: 64 | Q25: 70 | R25: 68 | S25: 68 | T25: 64 | U25: 72 | V25: 66 | W25: 64 | X25: 54 | Y25: 54 | Z25: 54 | AA25: 58 | AB25: 10 | AC25: 4
A30: Kit Analysis
B31: Compound | D31: CHK2 Inhibitor | G31: IC50
B32: Reaction Conc. (nM) | D32: 10000 | F32: CHK1 | G32: N/C
B33: Dilution Factor | D33: 4 | F33: CHK2 | G33: 36.06207705
B34: KPS | D34: CAMK-1 | F34: MAPKAPK2 | G34: N/C
F35: MARK1 | G35: N/C
F36: MELK | G36: N/C
F37: PASK | G37: N/C
F38: PIM1 | G38: N/C
F39: PKCmu (PKD1) | G39: N/C
B50: Compound | D50: Blank | G50: IC50
B51: Reaction Conc. (nM) | D51: 10000 | F51: AXL1 | G51: N/C
B52: Dilution Factor | D52: 4 | F52: EPHA1 | G52: N/C
B53: KPS | D53: TK-3 | F53: FAK | G53: N/C
F54: ITK | G54: N/C
F55: JAK3 | G55: N/C
F56: PYK2 | G56: N/C
F57: SYK | G57: N/C
F58: TRKA | G58: N/C

Sheet IC50 (hidden)
B1: 1 | C1: 2 | D1: 3 | E1: 4 | F1: 5 | G1: 6 | H1: 7 | I1: 8 | J1: 9 | K1: 10 | L1: 11 | M1: 12 | N1: 13 | O1: 14 | P1: 15 | Q1: 16 | R1: 17 | S1: 18 | T1: 19 | U1: 20 | V1: 21 | W1: 22 | X1: 23 | Y1: 24 | AB1: 1 | AC1: 2 | AD1: 3 | AE1: 4 | AF1: 5 | AG1: 6 | AH1: 7 | AI1: 8 | AJ1: 9 | AK1: 10 | AL1: 11 | AM1: 12 | AN1: 13 | AO1: 14 | AP1: 15 | AQ1: 16 | AR1: 17 | AS1: 18 | AT1: 19 | AU1: 20 | AV1: 21 | AW1: 22 | AZ1: 1 | BA1: 2 | BB1: 3 | BC1: 4 | BD1: 5 | BE1: 6 | BF1: 7 | BG1: 8 | BH1: 9 | BI1: 10 | BJ1: 11 | BK1: 12 | BL1: 13 | BM1: 14 | BN1: 15 | BO1: 16 | BP1: 17 | BQ1: 18 | BR1: 19 | BS1: 20
A2: A | B2: =Results!F10 -> 33569 | C2: =Results!G10 -> 32851 | D2: =Results!H10 -> 30866 | E2: =Results!I10 -> 29803 | F2: =Results!J10 -> 33959 | G2: =Results!K10 -> 33012 | H2: =Results!L10 -> 33213 | I2: =Results!M10 -> 32638 | J2: =Results!N10 -> 30846 | K2: =Results!O10 -> 32598 | L2: =Results!P10 -> 31266 | M2: =Results!Q10 -> 30629 | N2: =Results!R10 -> 29204 | O2: =Results!S10 -> 31457 | P2: =Results!T10 -> 33718 | Q2: =Results!U10 -> 32622 | R2: =Results!V10 -> 32890 | S2: =Results!W10 -> 30177 | T2: =Results!X10 -> 33846 | U2: =Results!Y10 -> 32425 | V2: =Results!Z10 -> 32795 | W2: =Results!AA10 -> 30112 | X2: =Results!AB10 -> 734 | Y2: =Results!AC10 -> 486 | AB2: =B2-AVERAGE($X2:$Y2) -> 32959 | AC2: =C2-AVERAGE($X2:$Y2) -> 32241 | AD2: 30256 | AE2: 29193 | AF2: 33349 | AG2: 32402 | AH2: 32603 | AI2: 32028 | AJ2: 30236 | AK2: 31988 | AL2: 30656 | AM2: 30019 | AN2: 28594 | AO2: 30847 | AP2: 33108 | AQ2: 32012 | AR2: 32280 | AS2: 29567 | AT2: 33236 | AU2: 31815 | AV2: 32185 | AW2: 29502 | AZ2: =AB2/(AVERAGE($AV2:$AW2))*100 -> 106.8588195 | BA2: =AC2/(AVERAGE($AV2:$AW2))*100 -> 104.5309384 | BB2: 98.09522266 | BC2: 94.64879148 | BD2: 108.1232675 | BE2: 105.0529285 | BF2: 105.7046055 | BG2: 103.8403553 | BH2: 98.03037917 | BI2: 103.7106684 | BJ2: 99.39209234 | BK2: 97.32682737 | BL2: 92.70672913 | BM2: 100.0113476 | BN2: 107.3419035 | BO2: 103.7884806 | BP2: 104.6573832 | BQ2: 95.86136463 | BR2: 107.7569018 | BS2: 103.1497722 | BV2: =STDEV(AZ2:BA2) -> 1.646060495 | BW2: =STDEV(BB2:BC2) -> 2.436994856 | BX2: =STDEV(BD2:BE2) -> 2.171057506 | BY2: =STDEV(BF2:BG2) -> 1.318223934 | BZ2: =STDEV(BH2:BI2) -> 4.016571014 | CA2: =STDEV(BJ2:BK2) -> 1.460362863 | CB2: =STDEV(BL2:BM2) -> 5.165145259 | CC2: =STDEV(BN2:BO2) -> 2.512649447 | CD2: =STDEV(BP2:BQ2) -> 6.219724407 | CE2: =STDEV(BR2:BS2) -> 3.25773254
A3: B | B3: =Results!F11 -> 10872 | C3: =Results!G11 -> 32299 | D3: =Results!H11 -> 31905 | E3: =Results!I11 -> 30761 | F3: =Results!J11 -> 178 | G3: =Results!K11 -> 146 | H3: =Results!L11 -> 144 | I3: =Results!M11 -> 118 | J3: =Results!N11 -> 146 | K3: =Results!O11 -> 134 | L3: =Results!P11 -> 148 | M3: =Results!Q11 -> 100 | N3: =Results!R11 -> 138 | O3: =Results!S11 -> 104 | P3: =Results!T11 -> 112 | Q3: =Results!U11 -> 132 | R3: =Results!V11 -> 152 | S3: =Results!W11 -> 126 | T3: =Results!X11 -> 150 | U3: =Results!Y11 -> 132 | V3: =Results!Z11 -> 154 | W3: =Results!AA11 -> 128 | X3: =Results!AB11 -> 14 | Y3: =Results!AC11 -> 6 | AB3: =B3-AVERAGE($X3:$Y3) -> 10862 | AC3: 32289 | AD3: 31895 | AE3: 30751 | AF3: 168 | AG3: 136 | AH3: 134 | AI3: 108 | AJ3: 136 | AK3: 124 | AL3: 138 | AM3: 90 | AN3: 128 | AO3: 94 | AP3: 102 | AQ3: 122 | AR3: 142 | AS3: 116 | AT3: 140 | AU3: 122 | AV3: 144 | AW3: 118 | AZ3: =AB3/(AVERAGE($AV3:$AW3))*100 -> 8291.603053 | BA3: 24648.0916 | BB3: 24347.32824 | BC3: 23474.0458 | BD3: 128.2442748 | BE3: 103.8167939 | BF3: 102.2900763 | BG3: 82.44274809 | BH3: 103.8167939 | BI3: 94.65648855 | BJ3: 105.3435115 | BK3: 68.70229008 | BL3: 97.70992366 | BM3: 71.75572519 | BN3: 77.86259542 | BO3: 93.12977099 | BP3: 108.3969466 | BQ3: 88.54961832 | BR3: 106.870229 | BS3: 93.12977099 | BV3: 11565.78397 | BW3: 617.5039372 | BX3: 17.2728374 | BY3: 14.03418039 | BZ3: 6.477314026 | CA3: 25.9092561 | CB3: 18.35238974 | CC3: 10.79552338 | CD3: 14.03418039 | CE3: 9.715971039
A4: C | B4: =Results!F12 -> 878 | C4: =Results!G12 -> 900 | D4: =Results!H12 -> 1020 | E4: =Results!I12 -> 1066 | F4: =Results!J12 -> 2438 | G4: =Results!K12 -> 2712 | H4: =Results!L12 -> 5035 | I4: =Results!M12 -> 5244 | J4: =Results!N12 -> 7618 | K4: =Results!O12 -> 7908 | L4: =Results!P12 -> 9218 | M4: =Results!Q12 -> 7334 | N4: =Results!R12 -> 8857 | O4: =Results!S12 -> 9336 | P4: =Results!T12 -> 10824 | Q4: =Results!U12 -> 9889 | R4: =Results!V12 -> 12219 | S4: =Results!W12 -> 11433 | T4: =Results!X12 -> 13171 | U4: =Results!Y12 -> 13145 | V4: =Results!Z12 -> 13119 | W4: =Results!AA12 -> 10935 | X4: =Results!AB12 -> 526 | Y4: =Results!AC12 -> 526 | AB4: 352 | AC4: 374 | AD4: 494 | AE4: 540 | AF4: 1912 | AG4: 2186 | AH4: 4509 | AI4: 4718 | AJ4: 7092 | AK4: 7382 | AL4: 8692 | AM4: 6808 | AN4: 8331 | AO4: 8810 | AP4: 10298 | AQ4: 9363 | AR4: 11693 | AS4: 10907 | AT4: 12645 | AU4: 12619 | AV4: 12593 | AW4: 10409 | AZ4: 3.060603426 | BA4: 3.25189114 | BB4: 4.295278671 | BC4: 4.695243892 | BD4: 16.62464134 | BE4: 19.00704287 | BF4: 39.2052865 | BG4: 41.02251978 | BH4: 61.66420311 | BI4: 64.18572298 | BJ4: 75.57603687 | BK4: 59.19485262 | BL4: 72.43717938 | BM4: 76.60203461 | BN4: 89.54004 | BO4: 81.41031215 | BP4: 101.6694201 | BQ4: 94.83523172 | BR4: 109.9469611 | BS4: 109.7208938 | BV4: 0.1352608398 | BW4: 0.2828181196 | BX4: 1.684612278 | BY4: 1.284977978 | BZ4: 1.782983797 | CA4: 11.58324646 | CB4: 2.944997376 | CC4: 5.748585692 | CD4: 4.832500913 | CE4: 0.1598537198
A5: D | B5: =Results!F13 -> 7045 | C5: =Results!G13 -> 7848 | D5: =Results!H13 -> 1818 | E5: =Results!I13 -> 2632 | F5: =Results!J13 -> 54 | G5: =Results!K13 -> 32 | H5: =Results!L13 -> 64 | I5: =Results!M13 -> 74 | J5: =Results!N13 -> 46 | K5: =Results!O13 -> 64 | L5: =Results!P13 -> 56 | M5: =Results!Q13 -> 44 | N5: =Results!R13 -> 60 | O5: =Results!S13 -> 68 | P5: =Results!T13 -> 76 | Q5: =Results!U13 -> 46 | R5: =Results!V13 -> 66 | S5: =Results!W13 -> 70 | T5: =Results!X13 -> 96 | U5: =Results!Y13 -> 56 | V5: =Results!Z13 -> 80 | W5: =Results!AA13 -> 74 | X5: =Results!AB13 -> 28 | Y5: =Results!AC13 -> 8 | AB5: 7027 | AC5: 7830 | AD5: 1800 | AE5: 2614 | AF5: 36 | AG5: 14 | AH5: 46 | AI5: 56 | AJ5: 28 | AK5: 46 | AL5: 38 | AM5: 26 | AN5: 42 | AO5: 50 | AP5: 58 | AQ5: 28 | AR5: 48 | AS5: 52 | AT5: 78 | AU5: 38 | AV5: 62 | AW5: 56 | AZ5: 11910.16949 | BA5: 13271.18644 | BB5: 3050.847458 | BC5: 4430.508475 | BD5: 61.01694915 | BE5: 23.72881356 | BF5: 77.96610169 | BG5: 94.91525424 | BH5: 47.45762712 | BI5: 77.96610169 | BJ5: 64.40677966 | BK5: 44.06779661 | BL5: 71.18644068 | BM5: 84.74576271 | BN5: 98.30508475 | BO5: 47.45762712 | BP5: 81.3559322 | BQ5: 88.13559322 | BR5: 132.2033898 | BS5: 64.40677966 | BV5: 962.3843141 | BW5: 975.5676608 | BX5: 26.36669354 | BY5: 11.9848607 | BZ5: 21.57274926 | CA5: 14.38183284 | CB5: 9.587888558 | CC5: 35.95458209 | CD5: 4.793944279 | CE5: 47.93944279
A6: E | B6: =Results!F14 -> 12622 | C6: =Results!G14 -> 12796 | D6: =Results!H14 -> 11433 | E6: =Results!I14 -> 10626 | F6: =Results!J14 -> 13123 | G6: =Results!K14 -> 13241 | H6: =Results!L14 -> 14014 | I6: =Results!M14 -> 13249 | J6: =Results!N14 -> 12403 | K6: =Results!O14 -> 13503 | L6: =Results!P14 -> 13181 | M6: =Results!Q14 -> 12553 | N6: =Results!R14 -> 12043 | O6: =Results!S14 -> 12325 | P6: =Results!T14 -> 13325 | Q6: =Results!U14 -> 11782 | R6: =Results!V14 -> 12201 | S6: =Results!W14 -> 12415 | T6: =Results!X14 -> 12752 | U6: =Results!Y14 -> 12357 | V6: =Results!Z14 -> 13407 | W6: =Results!AA14 -> 12391 | X6: =Results!AB14 -> 556 | Y6: =Results!AC14 -> 526 | AB6: 12081 | AC6: 12255 | AD6: 10892 | AE6: 10085 | AF6: 12582 | AG6: 12700 | AH6: 13473 | AI6: 12708 | AJ6: 11862 | AK6: 12962 | AL6: 12640 | AM6: 12012 | AN6: 11502 | AO6: 11784 | AP6: 12784 | AQ6: 11241 | AR6: 11660 | AS6: 11874 | AT6: 12211 | AU6: 11816 | AV6: 12866 | AW6: 11850 | AZ6: 97.75853698 | BA6: 99.1665318 | BB6: 88.13723904 | BC6: 81.60705616 | BD6: 101.812591 | BE6: 102.7674381 | BF6: 109.0224955 | BG6: 102.8321735 | BH6: 95.98640557 | BI6: 104.8875223 | BJ6: 102.2819226 | BK6: 97.20019421 | BL6: 93.07331283 | BM6: 95.35523547 | BN6: 103.4471597 | BO6: 90.9613206 | BP6: 94.35183687 | BQ6: 96.08350866 | BR6: 98.81048713 | BS6: 95.61417705 | BV6: 0.9956026859 | BW6: 4.617536595 | BX6: 0.675178833 | BY6: 4.377218705 | BZ6: 6.294039968 | CA6: 3.593324637 | CB6: 1.613562974 | CC6: 8.828821519 | CD6: 1.224476867 | CE6: 2.260132534
A7: F | B7: =Results!F15 -> 11700 | C7: =Results!G15 -> 12932 | D7: =Results!H15 -> 12852 | E7: =Results!I15 -> 12840 | F7: =Results!J15 -> 180 | G7: =Results!K15 -> 124 | H7: =Results!L15 -> 130 | I7: =Results!M15 -> 96 | J7: =Results!N15 -> 104 | K7: =Results!O15 -> 100 | L7: =Results!P15 -> 90 | M7: =Results!Q15 -> 122 | N7: =Results!R15 -> 108 | O7: =Results!S15 -> 110 | P7: =Results!T15 -> 88 | Q7: =Results!U15 -> 106 | R7: =Results!V15 -> 78 | S7: =Results!W15 -> 90 | T7: =Results!X15 -> 98 | U7: =Results!Y15 -> 74 | V7: =Results!Z15 -> 76 | W7: =Results!AA15 -> 96 | X7: =Results!AB15 -> 16 | Y7: =Results!AC15 -> 6 | AB7: 11689 | AC7: 12921 | AD7: 12841 | AE7: 12829 | AF7: 169 | AG7: 113 | AH7: 119 | AI7: 85 | AJ7: 93 | AK7: 89 | AL7: 79 | AM7: 111 | AN7: 97 | AO7: 99 | AP7: 77 | AQ7: 95 | AR7: 67 | AS7: 79 | AT7: 87 | AU7: 63 | AV7: 65 | AW7: 85 | AZ7: 15585.33333 | BA7: 17228 | BB7: 17121.33333 | BC7: 17105.33333 | BD7: 225.3333333 | BE7: 150.6666667 | BF7: 158.6666667 | BG7: 113.3333333 | BH7: 124 | BI7: 118.6666667 | BJ7: 105.3333333 | BK7: 148 | BL7: 129.3333333 | BM7: 132 | BN7: 102.6666667 | BO7: 126.6666667 | BP7: 89.33333333 | BQ7: 105.3333333 | BR7: 116 | BS7: 84 | BV7: 1161.540739 | BW7: 11.3137085 | BX7: 52.79730633 | BY7: 32.05550741 | BZ7: 3.771236166 | CA7: 30.16988933 | CB7: 1.885618083 | CC7: 16.97056275 | CD7: 11.3137085 | CE7: 22.627417
A8: G | B8: =Results!F16 -> 25210 | C8: =Results!G16 -> 25043 | D8: =Results!H16 -> 23712 | E8: =Results!I16 -> 19877 | F8: =Results!J16 -> 22887 | G8: =Results!K16 -> 26575 | H8: =Results!L16 -> 25804 | I8: =Results!M16 -> 25011 | J8: =Results!N16 -> 25489 | K8: =Results!O16 -> 26653 | L8: =Results!P16 -> 24880 | M8: =Results!Q16 -> 26418 | N8: =Results!R16 -> 25627 | O8: =Results!S16 -> 26266 | P8: =Results!T16 -> 28043 | Q8: =Results!U16 -> 22191 | R8: =Results!V16 -> 26179 | S8: =Results!W16 -> 22935 | T8: =Results!X16 -> 22042 | U8: =Results!Y16 -> 23323 | V8: =Results!Z16 -> 22879 | W8: =Results!AA16 -> 21165 | X8: =Results!AB16 -> 1378 | Y8: =Results!AC16 -> 472 | AB8: 24285 | AC8: 24118 | AD8: 22787 | AE8: 18952 | AF8: 21962 | AG8: 25650 | AH8: 24879 | AI8: 24086 | AJ8: 24564 | AK8: 25728 | AL8: 23955 | AM8: 25493 | AN8: 24702 | AO8: 25341 | AP8: 27118 | AQ8: 21266 | AR8: 25254 | AS8: 22010 | AT8: 21117 | AU8: 22398 | AV8: 21954 | AW8: 20240 | AZ8: 115.1111532 | BA8: 114.3195715 | BB8: 108.0106176 | BC8: 89.83267763 | BD8: 104.100109 | BE8: 121.5812675 | BF8: 117.9267194 | BG8: 114.1678912 | BH8: 116.4336162 | BI8: 121.9509883 | BJ8: 113.5469498 | BK8: 120.8370858 | BL8: 117.0877376 | BM8: 120.1166043 | BN8: 128.5396028 | BO8: 100.8010618 | BP8: 119.7042233 | BQ8: 104.3276295 | BR8: 100.0948002 | BS8: 106.1667536 | BV8: 0.5597328173 | BW8: 12.85374464 | BX8: 12.36104569 | BY8: 2.657892959 | BZ8: 3.901371253 | CA8: 5.154904628 | CB8: 2.141732157 | CC8: 19.61411046 | CD8: 10.87289377 | CE8: 4.293519395
A9: H | B9: =Results!F17 -> 15468 | C9: =Results!G17 -> 17328 | D9: =Results!H17 -> 26979 | E9: =Results!I17 -> 21517 | F9: =Results!J17 -> 186 | G9: =Results!K17 -> 166 | H9: =Results!L17 -> 164 | I9: =Results!M17 -> 136 | J9: =Results!N17 -> 134 | K9: =Results!O17 -> 110 | L9: =Results!P17 -> 122 | M9: =Results!Q17 -> 122 | N9: =Results!R17 -> 150 | O9: =Results!S17 -> 134 | P9: =Results!T17 -> 162 | Q9: =Results!U17 -> 88 | R9: =Results!V17 -> 132 | S9: =Results!W17 -> 126 | T9: =Results!X17 -> 130 | U9: =Results!Y17 -> 104 | V9: =Results!Z17 -> 100 | W9: =Results!AA17 -> 96 | X9: =Results!AB17 -> 38 | Y9: =Results!AC17 -> 14 | AB9: 15442 | AC9: 17302 | AD9: 26953 | AE9: 21491 | AF9: 160 | AG9: 140 | AH9: 138 | AI9: 110 | AJ9: 108 | AK9: 84 | AL9: 96 | AM9: 96 | AN9: 124 | AO9: 108 | AP9: 136 | AQ9: 62 | AR9: 106 | AS9: 100 | AT9: 104 | AU9: 78 | AV9: 74 | AW9: 70 | AZ9: 21447.22222 | BA9: 24030.55556 | BB9: 37434.72222 | BC9: 29848.61111 | BD9: 222.2222222 | BE9: 194.4444444 | BF9: 191.6666667 | BG9: 152.7777778 | BH9: 150 | BI9: 116.6666667 | BJ9: 133.3333333 | BK9: 133.3333333 | BL9: 172.2222222 | BM9: 150 | BN9: 188.8888889 | BO9: 86.11111111 | BP9: 147.2222222 | BQ9: 138.8888889 | BR9: 144.4444444 | BS9: 108.3333333 | BV9: 1826.692518 | BW9: 5364.19061 | BX9: 19.64185503 | BY9: 27.49859705 | BZ9: 23.57022604 | CA9: 0 | CB9: 15.71348403 | CC9: 72.67486362 | CD9: 5.89255651 | CE9: 25.53441154
A10: I | B10: =Results!F18 -> 26513 | C10: =Results!G18 -> 25910 | D10: =Results!H18 -> 25633 | E10: =Results!I18 -> 25461 | F10: =Results!J18 -> 29817 | G10: =Results!K18 -> 29190 | H10: =Results!L18 -> 31716 | I10: =Results!M18 -> 30012 | J10: =Results!N18 -> 28772 | K10: =Results!O18 -> 30739 | L10: =Results!P18 -> 28658 | M10: =Results!Q18 -> 29174 | N10: =Results!R18 -> 28041 | O10: =Results!S18 -> 28995 | P10: =Results!T18 -> 28967 | Q10: =Results!U18 -> 24949 | R10: =Results!V18 -> 28220 | S10: =Results!W18 -> 24822 | T10: =Results!X18 -> 26780 | U10: =Results!Y18 -> 27169 | V10: =Results!Z18 -> 26679 | W10: =Results!AA18 -> 24415 | X10: =Results!AB18 -> 1312 | Y10: =Results!AC18 -> 574 | AB10: 25570 | AC10: 24967 | AD10: 24690 | AE10: 24518 | AF10: 28874 | AG10: 28247 | AH10: 30773 | AI10: 29069 | AJ10: 27829 | AK10: 29796 | AL10: 27715 | AM10: 28231 | AN10: 27098 | AO10: 28052 | AP10: 28024 | AQ10: 24006 | AR10: 27277 | AS10: 23879 | AT10: 25837 | AU10: 26226 | AV10: 25736 | AW10: 23472 | AZ10: 103.9261909 | BA10: 101.4753699 | BB10: 100.3495367 | BC10: 99.65046334 | BD10: 117.3549016 | BE10: 114.8065355 | BF10: 125.0731588 | BG10: 118.1474557 | BH10: 113.1076248 | BI10: 121.1022598 | BJ10: 112.6442855 | BK10: 114.7415054 | BL10: 110.1365632 | BM10: 114.0139815 | BN10: 113.9001788 | BO10: 97.56950089 | BP10: 110.8640871 | BQ10: 97.05332466 | BR10: 105.0113803 | BS10: 106.592424 | BV10: 1.732992152 | BW10: 0.4943194861 | BX10: 1.801966964 | BY10: 4.897211653 | BZ10: 5.653060635 | CA10: 1.482958458 | CB10: 2.741748778 | CC10: 11.54753311 | CD10: 9.765683801 | CE10: 1.117966745
A11: J | B11: =Results!F19 -> 2634 | C11: =Results!G19 -> 3276 | D11: =Results!H19 -> 22909 | E11: =Results!I19 -> 27178 | F11: =Results!J19 -> 188 | G11: =Results!K19 -> 142 | H11: =Results!L19 -> 154 | I11: =Results!M19 -> 124 | J11: =Results!N19 -> 110 | K11: =Results!O19 -> 132 | L11: =Results!P19 -> 122 | M11: =Results!Q19 -> 102 | N11: =Results!R19 -> 110 | O11: =Results!S19 -> 96 | P11: =Results!T19 -> 100 | Q11: =Results!U19 -> 100 | R11: =Results!V19 -> 78 | S11: =Results!W19 -> 100 | T11: =Results!X19 -> 118 | U11: =Results!Y19 -> 72 | V11: =Results!Z19 -> 100 | W11: =Results!AA19 -> 98 | X11: =Results!AB19 -> 22 | Y11: =Results!AC19 -> 4 | AB11: 2621 | AC11: 3263 | AD11: 22896 | AE11: 27165 | AF11: 175 | AG11: 129 | AH11: 141 | AI11: 111 | AJ11: 97 | AK11: 119 | AL11: 109 | AM11: 89 | AN11: 97 | AO11: 83 | AP11: 87 | AQ11: 87 | AR11: 65 | AS11: 87 | AT11: 105 | AU11: 59 | AV11: 87 | AW11: 85 | AZ11: 3047.674419 | BA11: 3794.186047 | BB11: 26623.25581 | BC11: 31587.2093 | BD11: 203.4883721 | BE11: 150 | BF11: 163.9534884 | BG11: 129.0697674 | BH11: 112.7906977 | BI11: 138.372093 | BJ11: 126.744186 | BK11: 103.4883721 | BL11: 112.7906977 | BM11: 96.51162791 | BN11: 101.1627907 | BO11: 101.1627907 | BP11: 75.58139535 | BQ11: 101.1627907 | BR11: 122.0930233 | BS11: 68.60465116 | BV11: 527.8634343 | BW11: 3510.045173 | BX11: 37.82199062 | BY11: 24.66651562 | BZ11: 18.08877812 | CA11: 16.44434375 | CB11: 11.51104062 | CC11: 0 | CD11: 18.08877812 | CE11: 37.82199062
A12: K | B12: =Results!F20 -> 14946 | C12: =Results!G20 -> 13746 | D12: =Results!H20 -> 14604 | E12: =Results!I20 -> 13259 | F12: =Results!J20 -> 16344 | G12: =Results!K20 -> 15502 | H12: =Results!L20 -> 17384 | I12: =Results!M20 -> 16530 | J12: =Results!N20 -> 15708 | K12: =Results!O20 -> 16957 | L12: =Results!P20 -> 16396 | M12: =Results!Q20 -> 15977 | N12: =Results!R20 -> 15500 | O12: =Results!S20 -> 16771 | P12: =Results!T20 -> 17130 | Q12: =Results!U20 -> 14507 | R12: =Results!V20 -> 16334 | S12: =Results!W20 -> 14850 | T12: =Results!X20 -> 16354 | U12: =Results!Y20 -> 16025 | V12: =Results!Z20 -> 15688 | W12: =Results!AA20 -> 14602 | X12: =Results!AB20 -> 1336 | Y12: =Results!AC20 -> 550 | AB12: 14003 | AC12: 12803 | AD12: 13661 | AE12: 12316 | AF12: 15401 | AG12: 14559 | AH12: 16441 | AI12: 15587 | AJ12: 14765 | AK12: 16014 | AL12: 15453 | AM12: 15034 | AN12: 14557 | AO12: 15828 | AP12: 16187 | AQ12: 13564 | AR12: 15391 | AS12: 13907 | AT12: 15411 | AU12: 15082 | AV12: 14745 | AW12: 13659 | AZ12: 98.5987889 | BA12: 90.14927475 | BB12: 96.19067737 | BC12: 86.72018026 | BD12: 108.4424729 | BE12: 102.5137305 | BF12: 115.7653852 | BG12: 109.7521476 | BH12: 103.9642304 | BI12: 112.7587664 | BJ12: 108.8086185 | BK12: 105.8583298 | BL12: 102.4996479 | BM12: 111.4490917 | BN12: 113.9769047 | BO12: 95.50767498 | BP12: 108.3720603 | BQ12: 97.92282777 | BR12: 108.5128855 | BS12: 106.1963104 | BV12: 5.974708755 | BW12: 6.69665273 | BX12: 4.192253977 | BY12: 4.252001064 | BZ12: 6.218676029 | CA12: 2.08616914 | CB12: 6.328212357 | CC12: 13.05971755 | CD12: 7.388723161 | CE12: 1.638065984
A13: L | B13: =Results!F21 -> 13505 | C13: =Results!G21 -> 13449 | D13: =Results!H21 -> 14981 | E13: =Results!I21 -> 15424 | F13: =Results!J21 -> 194 | G13: =Results!K21 -> 152 | H13: =Results!L21 -> 176 | I13: =Results!M21 -> 140 | J13: =Results!N21 -> 152 | K13: =Results!O21 -> 122 | L13: =Results!P21 -> 128 | M13: =Results!Q21 -> 148 | N13: =Results!R21 -> 116 | O13: =Results!S21 -> 132 | P13: =Results!T21 -> 134 | Q13: =Results!U21 -> 130 | R13: =Results!V21 -> 138 | S13: =Results!W21 -> 152 | T13: =Results!X21 -> 144 | U13: =Results!Y21 -> 130 | V13: =Results!Z21 -> 108 | W13: =Results!AA21 -> 116 | X13: =Results!AB21 -> 30 | Y13: =Results!AC21 -> 10 | AB13: 13485 | AC13: 13429 | AD13: 14961 | AE13: 15404 | AF13: 174 | AG13: 132 | AH13: 156 | AI13: 120 | AJ13: 132 | AK13: 102 | AL13: 108 | AM13: 128 | AN13: 96 | AO13: 112 | AP13: =P13-AVERAGE($X13:$Y13) -> 114 | AQ13: =Q13-AVERAGE($X13:$Y13) -> 110 | AR13: =R13-AVERAGE($X13:$Y13) -> 118 | AS13: =S13-AVERAGE($X13:$Y13) -> 132 | AT13: =T13-AVERAGE($X13:$Y13) -> 124 | AU13: =U13-AVERAGE($X13:$Y13) -> 110 | AV13: =V13-AVERAGE($X13:$Y13) -> 88 | AW13: =W13-AVERAGE($X13:$Y13) -> 96 | AZ13: 14657.6087 | BA13: 14596.73913 | BB13: 16261.95652 | BC13: 16743.47826 | BD13: 189.1304348 | BE13: 143.4782609 | BF13: 169.5652174 | BG13: 130.4347826 | BH13: 143.4782609 | BI13: 110.8695652 | BJ13: 117.3913043 | BK13: 139.1304348 | BL13: 104.3478261 | BM13: 121.7391304 | BN13: 123.9130435 | BO13: 119.5652174 | BP13: 128.2608696 | BQ13: 143.4782609 | BR13: 134.7826087 | BS13: 119.5652174 | BV13: 43.04128233 | BW13: 340.487287 | BX13: 32.28096175 | BY13: 27.66939579 | BZ13: 23.05782982 | CA13: 15.37188655 | CB13: 12.29750924 | CC13: 3.07437731 | CD13: 10.76032058 | CE13: 10.76032058
A14: M | B14: =Results!F22 -> 42323 | C14: =Results!G22 -> 39111 | D14: =Results!H22 -> 36006 | E14: =Results!I22 -> 34152 | F14: =Results!J22 -> 43986 | G14: =Results!K22 -> 42424 | H14: =Results!L22 -> 46306 | I14: =Results!M22 -> 44272 | J14: =Results!N22 -> 44052 | K14: =Results!O22 -> 45013 | L14: =Results!P22 -> 42251 | M14: =Results!Q22 -> 44626 | N14: =Results!R22 -> 36223 | O14: =Results!S22 -> 43889 | P14: =Results!T22 -> 43986 | Q14: =Results!U22 -> 41526 | R14: =Results!V22 -> 43215 | S14: =Results!W22 -> 38906 | T14: =Results!X22 -> 45192 | U14: =Results!Y22 -> 45667 | V14: =Results!Z22 -> 48183 | W14: =Results!AA22 -> 44214 | X14: =Results!AB22 -> 588 | Y14: =Results!AC22 -> 488 | AB14: 41785 | AC14: =C14-AVERAGE($X14:$Y14) -> 38573 | AD14: =D14-AVERAGE($X14:$Y14) -> 35468 | AE14: =E14-AVERAGE($X14:$Y14) -> 33614 | AF14: =F14-AVERAGE($X14:$Y14) -> 43448 | AG14: =G14-AVERAGE($X14:$Y14) -> 41886 | AH14: =H14-AVERAGE($X14:$Y14) -> 45768 | AI14: =I14-AVERAGE($X14:$Y14) -> 43734 | AJ14: =J14-AVERAGE($X14:$Y14) -> 43514 | AK14: =K14-AVERAGE($X14:$Y14) -> 44475 | AL14: =L14-AVERAGE($X14:$Y14) -> 41713 | AM14: =M14-AVERAGE($X14:$Y14) -> 44088 | AN14: =N14-AVERAGE($X14:$Y14) -> 35685 | AO14: =O14-AVERAGE($X14:$Y14) -> 43351 | AP14: 43448 | AQ14: 40988 | AR14: 42677 | AS14: 38368 | AT14: 44654 | AU14: 45129 | AV14: 47645 | AW14: 43676 | AZ14: 91.51235751 | BA14: 84.47783095 | BB14: 77.6776426 | BC14: 73.61724028 | BD14: 95.15445516 | BE14: 91.73355526 | BF14: 100.2354333 | BG14: 95.78081712 | BH14: 95.29900023 | BI14: 97.403664 | BJ14: 91.35467198 | BK14: 96.55610429 | BL14: 78.15288926 | BM14: 94.94201772 | BN14: 95.15445516 | BO14: 89.76686633 | BP14: 93.46590598 | BQ14: 84.02886521 | BR14: 97.79568774 | BS14: 98.8359742 | BV14: 4.974161433 | BW14: 2.871138013 | BX14: 2.418941519 | BY14: 3.149889276 | BZ14: 1.488222023 | CA14: 3.677968058 | CB14: 11.87170658 | CC14: 3.809600599 | CD14: 6.672995522 | CE14: 0.7355936117
A15: N | B15: =Results!F23 -> 36217 | C15: =Results!G23 -> 32116 | D15: =Results!H23 -> 39522 | E15: =Results!I23 -> 36346 | F15: =Results!J23 -> 272 | G15: =Results!K23 -> 208 | H15: =Results!L23 -> 218 | I15: =Results!M23 -> 218 | J15: =Results!N23 -> 214 | K15: =Results!O23 -> 166 | L15: =Results!P23 -> 200 | M15: =Results!Q23 -> 178 | N15: =Results!R23 -> 144 | O15: =Results!S23 -> 168 | P15: =Results!T23 -> 130 | Q15: =Results!U23 -> 170 | R15: =Results!V23 -> 172 | S15: =Results!W23 -> 172 | T15: =Results!X23 -> 184 | U15: =Results!Y23 -> 186 | V15: =Results!Z23 -> 166 | W15: =Results!AA23 -> 150 | X15: =Results!AB23 -> 8 | Y15: =Results!AC23 -> 6 | AB15: 36210 | AC15: 32109 | AD15: 39515 | AE15: 36339 | AF15: 265 | AG15: 201 | AH15: 211 | AI15: 211 | AJ15: 207 | AK15: 159 | AL15: 193 | AM15: 171 | AN15: 137 | AO15: 161 | AP15: 123 | AQ15: 163 | AR15: 165 | AS15: 165 | AT15: 177 | AU15: 179 | AV15: 159 | AW15: 143 | AZ15: 23980.13245 | BA15: 21264.23841 | BB15: 26168.87417 | BC15: 24065.56291 | BD15: 175.4966887 | BE15: 133.1125828 | BF15: 139.7350993 | BG15: 139.7350993 | BH15: 137.0860927 | BI15: =AK15/(AVERAGE($AV15:$AW15))*100 -> 105.2980132 | BJ15: =AL15/(AVERAGE($AV15:$AW15))*100 -> 127.8145695 | BK15: =AM15/(AVERAGE($AV15:$AW15))*100 -> 113.2450331 | BL15: =AN15/(AVERAGE($AV15:$AW15))*100 -> 90.72847682 | BM15: =AO15/(AVERAGE($AV15:$AW15))*100 -> 106.6225166 | BN15: =AP15/(AVERAGE($AV15:$AW15))*100 -> 81.45695364 | BO15: =AQ15/(AVERAGE($AV15:$AW15))*100 -> 107.9470199 | BP15: =AR15/(AVERAGE($AV15:$AW15))*100 -> 109.2715232 | BQ15: =AS15/(AVERAGE($AV15:$AW15))*100 -> 109.2715232 | BR15: =AT15/(AVERAGE($AV15:$AW15))*100 -> 117.218543 | BS15: =AU15/(AVERAGE($AV15:$AW15))*100 -> 118.5430464 | BV15: 1920.427092 | BW15: 1487.265654 | BX15: 29.97008874 | BY15: 0 | BZ15: 22.47756655 | CA15: 10.302218 | CB15: 11.23878328 | CC15: 18.73130546 | CD15: 0 | CE15: 0.9365652731
A16: O | B16: =Results!F24 -> 23694 | C16: =Results!G24 -> 23590 | D16: =Results!H24 -> 22213 | E16: =Results!I24 -> 19912 | F16: =Results!J24 -> 23855 | G16: =Results!K24 -> 23690 | H16: =Results!L24 -> 24385 | I16: =Results!M24 -> 25417 | J16: =Results!N24 -> 25669 | K16: =Results!O24 -> 25186 | L16: =Results!P24 -> 20263 | M16: =Results!Q24 -> 21629 | N16: =Results!R24 -> 22745 | O16: =Results!S24 -> 23375 | P16: =Results!T24 -> 25200 | Q16: =Results!U24 -> 21286 | R16: =Results!V24 -> 24734 | S16: =Results!W24 -> 19472 | T16: =Results!X24 -> 24479 | U16: =Results!Y24 -> 24302 | V16: =Results!Z24 -> 26416 | W16: =Results!AA24 -> 24100 | X16: =Results!AB24 -> 494 | Y16: =Results!AC24 -> 552 | AB16: 23171 | AC16: 23067 | AD16: 21690 | AE16: 19389 | AF16: 23332 | AG16: 23167 | AH16: 23862 | AI16: 24894 | AJ16: 25146 | AK16: 24663 | AL16: 19740 | AM16: 21106 | AN16: 22222 | AO16: 22852 | AP16: 24677 | AQ16: 20763 | AR16: 24211 | AS16: 18949 | AT16: 23956 | AU16: 23779 | AV16: 25893 | AW16: 23577 | AZ16: 93.67697595 | BA16: =AC16/(AVERAGE($AV16:$AW16))*100 -> 93.2565191 | BB16: =AD16/(AVERAGE($AV16:$AW16))*100 -> 87.68950879 | BC16: =AE16/(AVERAGE($AV16:$AW16))*100 -> 78.38690115 | BD16: =AF16/(AVERAGE($AV16:$AW16))*100 -> 94.32787548 | BE16: =AG16/(AVERAGE($AV16:$AW16))*100 -> 93.66080453 | BF16: =AH16/(AVERAGE($AV16:$AW16))*100 -> 96.47058824 | BG16: =AI16/(AVERAGE($AV16:$AW16))*100 -> 100.6428138 | BH16: =AJ16/(AVERAGE($AV16:$AW16))*100 -> 101.6616131 | BI16: 99.70891449 | BJ16: 79.805943 | BK16: 85.32848191 | BL16: 89.84030726 | BM16: 92.38730544 | BN16: 99.76551445 | BO16: 83.9417829 | BP16: 97.88154437 | BQ16: 76.60804528 | BR16: 96.85061654 | BS16: 96.13503133 | BV16: 0.2973078845 | BW16: 6.577936946 | BX16: 0.4716903938 | BY16: 2.950209008 | BZ16: 1.380766425 | CA16: 3.905024714 | CB16: 1.800999685 | CC16: 11.18906789 | CD16: 15.04263547 | CE16: 0.5059951497
A17: P | B17: =Results!F25 -> 18590 | C17: =Results!G25 -> 17946 | D17: =Results!H25 -> 24413 | E17: =Results!I25 -> 23698 | F17: =Results!J25 -> 162 | G17: =Results!K25 -> 108 | H17: =Results!L25 -> 106 | I17: =Results!M25 -> 78 | J17: =Results!N25 -> 86 | K17: =Results!O25 -> 64 | L17: =Results!P25 -> 64 | M17: =Results!Q25 -> 70 | N17: =Results!R25 -> 68 | O17: =Results!S25 -> 68 | P17: =Results!T25 -> 64 | Q17: =Results!U25 -> 72 | R17: =Results!V25 -> 66 | S17: =Results!W25 -> 64 | T17: =Results!X25 -> 54 | U17: =Results!Y25 -> 54 | V17: =Results!Z25 -> 54 | W17: =Results!AA25 -> 58 | X17: =Results!AB25 -> 10 | Y17: =Results!AC25 -> 4 | AB17: 18583 | AC17: 17939 | AD17: 24406 | AE17: 23691 | AF17: 155 | AG17: 101 | AH17: 99 | AI17: 71 | AJ17: 79 | AK17: 57 | AL17: 57 | AM17: 63 | AN17: 61 | AO17: 61 | AP17: 57 | AQ17: 65 | AR17: 59 | AS17: 57 | AT17: 47 | AU17: 47 | AV17: 47 | AW17: 51 | AZ17: 37924.4898 | BA17: 36610.20408 | BB17: 49808.16327 | BC17: 48348.97959 | BD17: 316.3265306 | BE17: 206.122449 | BF17: 202.0408163 | BG17: 144.8979592 | BH17: 161.2244898 | BI17: 116.3265306 | BJ17: 116.3265306 | BK17: 128.5714286 | BL17: 124.4897959 | BM17: 124.4897959 | BN17: 116.3265306 | BO17: 132.6530612 | BP17: 120.4081633 | BQ17: 116.3265306 | BR17: 95.91836735 | BS17: 95.91836735 | BV17: 929.340341 | BW17: 1031.798671 | BX17: 77.92605344 | BY17: 40.40610178 | BZ17: 31.7476514 | CA17: 8.658450382 | CB17: 0 | CC17: 11.54460051 | CD17: 2.886150127 | CE17: 0
A19: Starting Conc. | B19: 10000 | AB19: Starting Conc. | AC19: 10000
A20: Dilution | B20: 4 | AB20: Dilution | AC20: 4
A21: Set 1 | B21: =B19 -> 10000 | C21: =B21/$B$20 -> 2500 | D21: =C21/$B$20 -> 625 | E21: 156.25 | F21: 39.0625 | G21: 9.765625 | H21: 2.44140625 | I21: 0.6103515625 | J21: 0.1525878906 | K21: 0.03814697266 | L21: 1 | M21: 0 | O21: =B21 -> 10000 | P21: 2500 | Q21: 625 | R21: 156.25 | S21: 39.0625 | T21: 9.765625 | U21: 2.44140625 | V21: 0.6103515625 | W21: 0.1525878906 | X21: 0.03814697266 | Y21: 1 | AB21: Set 2 | AC21: =AC19 -> 10000 | AD21: =AC21/$AC$20 -> 2500 | AE21: 625 | AF21: 156.25 | AG21: 39.0625 | AH21: 9.765625 | AI21: 2.44140625 | AJ21: 0.6103515625 | AK21: 0.1525878906 | AL21: 0.03814697266 | AM21: 1 | AN21: 0 | AP21: =AC21 -> 10000 | AQ21: =AD21 -> 2500 | AR21: =AE21 -> 625 | AS21: =AF21 -> 156.25 | AT21: =AG21 -> 39.0625 | AU21: =AH21 -> 9.765625 | AV21: =AI21 -> 2.44140625 | AW21: =AJ21 -> 0.6103515625 | AX21: =AK21 -> 0.1525878906 | AY21: =AL21 -> 0.03814697266 | AZ21: 1
A22: Kinase 1 | B22: =AVERAGE(B2:C2) -> 33210 | C22: =AVERAGE(D2:E2) -> 30334.5 | D22: =AVERAGE(F2:G2) -> 33485.5 | E22: =AVERAGE(H2:I2) -> 32925.5 | F22: =AVERAGE(J2:K2) -> 31722 | G22: =AVERAGE(L2:M2) -> 30947.5 | H22: =AVERAGE(N2:O2) -> 30330.5 | I22: =AVERAGE(P2:Q2) -> 33170 | J22: =AVERAGE(R2:S2) -> 31533.5 | K22: =AVERAGE(T2:U2) -> 33135.5 | L22: =AVERAGE(V2:W2) -> 31453.5 | M22: =AVERAGE(X2:Y2) -> 610 | O22: =B22-$M22 -> 32600 | P22: =C22-$M22 -> 29724.5 | Q22: 32875.5 | R22: 32315.5 | S22: 31112 | T22: 30337.5 | U22: 29720.5 | V22: 32560 | W22: 30923.5 | X22: 32525.5 | Y22: 30843.5 | AB22: Kinase 1 | AC22: =AVERAGE(B3:C3) -> 21585.5 | AD22: =AVERAGE(D3:E3) -> 31333 | AE22: =AVERAGE(F3:G3) -> 162 | AF22: =AVERAGE(H3:I3) -> 131 | AG22: =AVERAGE(J3:K3) -> 140 | AH22: =AVERAGE(L3:M3) -> 124 | AI22: =AVERAGE(N3:O3) -> 121 | AJ22: =AVERAGE(P3:Q3) -> 122 | AK22: =AVERAGE(R3:S3) -> 139 | AL22: =AVERAGE(T3:U3) -> 141 | AM22: =AVERAGE(V3:W3) -> 141 | AN22: =AVERAGE(X3:Y3) -> 10 | AP22: =AC22-$AN22 -> 21575.5 | AQ22: 31323 | AR22: 152 | AS22: 121 | AT22: 130 | AU22: 114 | AV22: 111 | AW22: 112 | AX22: 129 | AY22: 131 | AZ22: 131
A23: Kinase 2 | B23: =AVERAGE(B4:C4) -> 889 | C23: =AVERAGE(D4:E4) -> 1043 | D23: =AVERAGE(F4:G4) -> 2575 | E23: =AVERAGE(H4:I4) -> 5139.5 | F23: =AVERAGE(J4:K4) -> 7763 | G23: =AVERAGE(L4:M4) -> 8276 | H23: =AVERAGE(N4:O4) -> 9096.5 | I23: =AVERAGE(P4:Q4) -> 10356.5 | J23: =AVERAGE(R4:S4) -> 11826 | K23: =AVERAGE(T4:U4) -> 13158 | L23: =AVERAGE(V4:W4) -> 12027 | M23: =AVERAGE(X4:Y4) -> 526 | O23: =B23-$M23 -> 363 | P23: 517 | Q23: 2049 | R23: 4613.5 | S23: 7237 | T23: 7750 | U23: 8570.5 | V23: 9830.5 | W23: 11300 | X23: 12632 | Y23: 11501 | AB23: Kinase 2 | AC23: =AVERAGE(B5:C5) -> 7446.5 | AD23: =AVERAGE(D5:E5) -> 2225 | AE23: =AVERAGE(F5:G5) -> 43 | AF23: =AVERAGE(H5:I5) -> 69 | AG23: =AVERAGE(J5:K5) -> 55 | AH23: =AVERAGE(L5:M5) -> 50 | AI23: =AVERAGE(N5:O5) -> 64 | AJ23: =AVERAGE(P5:Q5) -> 61 | AK23: =AVERAGE(R5:S5) -> 68 | AL23: =AVERAGE(T5:U5) -> 76 | AM23: =AVERAGE(V5:W5) -> 77 | AN23: =AVERAGE(X5:Y5) -> 18 | AP23: 7428.5 | AQ23: 2207 | AR23: 25 | AS23: 51 | AT23: 37 | AU23: 32 | AV23: 46 | AW23: 43 | AX23: 50 | AY23: 58 | AZ23: 59
A24: Kinase 3 | B24: =AVERAGE(B6:C6) -> 12709 | C24: =AVERAGE(D6:E6) -> 11029.5 | D24: =AVERAGE(F6:G6) -> 13182 | E24: =AVERAGE(H6:I6) -> 13631.5 | F24: =AVERAGE(J6:K6) -> 12953 | G24: =AVERAGE(L6:M6) -> 12867 | H24: =AVERAGE(N6:O6) -> 12184 | I24: =AVERAGE(P6:Q6) -> 12553.5 | J24: =AVERAGE(R6:S6) -> 12308 | K24: =AVERAGE(T6:U6) -> 12554.5 | L24: =AVERAGE(V6:W6) -> 12899 | M24: =AVERAGE(X6:Y6) -> 541 | O24: =B24-$M24 -> 12168 | P24: 10488.5 | Q24: 12641 | R24: 13090.5 | S24: 12412 | T24: 12326 | U24: 11643 | V24: 12012.5 | W24: 11767 | X24: 12013.5 | Y24: 12358 | AB24: Kinase 3 | AC24: =AVERAGE(B7:C7) -> 12316 | AD24: =AVERAGE(D7:E7) -> 12846 | AE24: =AVERAGE(F7:G7) -> 152 | AF24: =AVERAGE(H7:I7) -> 113 | AG24: =AVERAGE(J7:K7) -> 102 | AH24: =AVERAGE(L7:M7) -> 106 | AI24: =AVERAGE(N7:O7) -> 109 | AJ24: =AVERAGE(P7:Q7) -> 97 | AK24: =AVERAGE(R7:S7) -> 84 | AL24: =AVERAGE(T7:U7) -> 86 | AM24: =AVERAGE(V7:W7) -> 86 | AN24: =AVERAGE(X7:Y7) -> 11 | AP24: 12305 | AQ24: 12835 | AR24: 141 | AS24: 102 | AT24: 91 | AU24: 95 | AV24: 98 | AW24: 86 | AX24: 73 | AY24: 75 | AZ24: 75
A25: Kinase 4 | B25: =AVERAGE(B8:C8) -> 25126.5 | C25: =AVERAGE(D8:E8) -> 21794.5 | D25: =AVERAGE(F8:G8) -> 24731 | E25: =AVERAGE(H8:I8) -> 25407.5 | F25: =AVERAGE(J8:K8) -> 26071 | G25: =AVERAGE(L8:M8) -> 25649 | H25: =AVERAGE(N8:O8) -> 25946.5 | I25: =AVERAGE(P8:Q8) -> 25117 | J25: =AVERAGE(R8:S8) -> 24557 | K25: =AVERAGE(T8:U8) -> 22682.5 | L25: =AVERAGE(V8:W8) -> 22022 | M25: =AVERAGE(X8:Y8) -> 925 | O25: 24201.5 | P25: 20869.5 | Q25: 23806 | R25: 24482.5 | S25: 25146 | T25: 24724 | U25: 25021.5 | V25: 24192 | W25: 23632 | X25: 21757.5 | Y25: 21097 | AB25: Kinase 4 | AC25: =AVERAGE(B9:C9) -> 16398 | AD25: =AVERAGE(D9:E9) -> 24248 | AE25: =AVERAGE(F9:G9) -> 176 | AF25: =AVERAGE(H9:I9) -> 150 | AG25: =AVERAGE(J9:K9) -> 122 | AH25: =AVERAGE(L9:M9) -> 122 | AI25: =AVERAGE(N9:O9) -> 142 | AJ25: =AVERAGE(P9:Q9) -> 125 | AK25: =AVERAGE(R9:S9) -> 129 | AL25: =AVERAGE(T9:U9) -> 117 | AM25: =AVERAGE(V9:W9) -> 98 | AN25: =AVERAGE(X9:Y9) -> 26 | AP25: 16372 | AQ25: 24222 | AR25: 150 | AS25: 124 | AT25: 96 | AU25: 96 | AV25: 116 | AW25: 99 | AX25: 103 | AY25: 91 | AZ25: 72
A26: Kinase 5 | B26: =AVERAGE(B10:C10) -> 26211.5 | C26: =AVERAGE(D10:E10) -> 25547 | D26: =AVERAGE(F10:G10) -> 29503.5 | E26: =AVERAGE(H10:I10) -> 30864 | F26: =AVERAGE(J10:K10) -> 29755.5 | G26: =AVERAGE(L10:M10) -> 28916 | H26: =AVERAGE(N10:O10) -> 28518 | I26: =AVERAGE(P10:Q10) -> 26958 | J26: =AVERAGE(R10:S10) -> 26521 | K26: =AVERAGE(T10:U10) -> 26974.5 | L26: =AVERAGE(V10:W10) -> 25547 | M26: =AVERAGE(X10:Y10) -> 943 | O26: 25268.5 | P26: 24604 | Q26: 28560.5 | R26: 29921 | S26: 28812.5 | T26: 27973 | U26: 27575 | V26: 26015 | W26: 25578 | X26: 26031.5 | Y26: 24604 | AB26: Kinase 5 | AC26: =AVERAGE(B11:C11) -> 2955 | AD26: =AVERAGE(D11:E11) -> 25043.5 | AE26: =AVERAGE(F11:G11) -> 165 | AF26: =AVERAGE(H11:I11) -> 139 | AG26: =AVERAGE(J11:K11) -> 121 | AH26: =AVERAGE(L11:M11) -> 112 | AI26: =AVERAGE(N11:O11) -> 103 | AJ26: =AVERAGE(P11:Q11) -> 100 | AK26: =AVERAGE(R11:S11) -> 89 | AL26: =AVERAGE(T11:U11) -> 95 | AM26: =AVERAGE(V11:W11) -> 99 | AN26: =AVERAGE(X11:Y11) -> 13 | AP26: 2942 | AQ26: 25030.5 | AR26: 152 | AS26: 126 | AT26: 108 | AU26: 99 | AV26: 90 | AW26: 87 | AX26: 76 | AY26: 82 | AZ26: 86
A27: Kinase 6 | B27: =AVERAGE(B12:C12) -> 14346 | C27: =AVERAGE(D12:E12) -> 13931.5 | D27: =AVERAGE(F12:G12) -> 15923 | E27: =AVERAGE(H12:I12) -> 16957 | F27: =AVERAGE(J12:K12) -> 16332.5 | G27: =AVERAGE(L12:M12) -> 16186.5 | H27: =AVERAGE(N12:O12) -> 16135.5 | I27: =AVERAGE(P12:Q12) -> 15818.5 | J27: =AVERAGE(R12:S12) -> 15592 | K27: =AVERAGE(T12:U12) -> 16189.5 | L27: =AVERAGE(V12:W12) -> 15145 | M27: =AVERAGE(X12:Y12) -> 943 | O27: 13403 | P27: 12988.5 | Q27: 14980 | R27: 16014 | S27: 15389.5 | T27: 15243.5 | U27: 15192.5 | V27: 14875.5 | W27: 14649 | X27: 15246.5 | Y27: 14202 | AB27: Kinase 6 | AC27: =AVERAGE(B13:C13) -> 13477 | AD27: =AVERAGE(D13:E13) -> 15202.5 | AE27: =AVERAGE(F13:G13) -> 173 | AF27: =AVERAGE(H13:I13) -> 158 | AG27: =AVERAGE(J13:K13) -> 137 | AH27: =AVERAGE(L13:M13) -> 138 | AI27: =AVERAGE(N13:O13) -> 124 | AJ27: =AVERAGE(P13:Q13) -> 132 | AK27: =AVERAGE(R13:S13) -> 145 | AL27: =AVERAGE(T13:U13) -> 137 | AM27: =AVERAGE(V13:W13) -> 112 | AN27: =AVERAGE(X13:Y13) -> 20 | AP27: 13457 | AQ27: 15182.5 | AR27: 153 | AS27: 138 | AT27: 117 | AU27: 118 | AV27: 104 | AW27: 112 | AX27: 125 | AY27: 117 | AZ27: 92
A28: Kinase 7 | B28: =AVERAGE(B14:C14) -> 40717 | C28: =AVERAGE(D14:E14) -> 35079 | D28: =AVERAGE(F14:G14) -> 43205 | E28: =AVERAGE(H14:I14) -> 45289 | F28: =AVERAGE(J14:K14) -> 44532.5 | G28: =AVERAGE(L14:M14) -> 43438.5 | H28: =AVERAGE(N14:O14) -> 40056 | I28: =AVERAGE(P14:Q14) -> 42756 | J28: =AVERAGE(R14:S14) -> 41060.5 | K28: =AVERAGE(T14:U14) -> 45429.5 | L28: =AVERAGE(V14:W14) -> 46198.5 | M28: =AVERAGE(X14:Y14) -> 538 | O28: 40179 | P28: 34541 | Q28: 42667 | R28: 44751 | S28: 43994.5 | T28: 42900.5 | U28: 39518 | V28: 42218 | W28: 40522.5 | X28: 44891.5 | Y28: 45660.5 | AB28: Kinase 7 | AC28: =AVERAGE(B15:C15) -> 34166.5 | AD28: =AVERAGE(D15:E15) -> 37934 | AE28: =AVERAGE(F15:G15) -> 240 | AF28: =AVERAGE(H15:I15) -> 218 | AG28: =AVERAGE(J15:K15) -> 190 | AH28: =AVERAGE(L15:M15) -> 189 | AI28: =AVERAGE(N15:O15) -> 156 | AJ28: =AVERAGE(P15:Q15) -> 150 | AK28: =AVERAGE(R15:S15) -> 172 | AL28: =AVERAGE(T15:U15) -> 185 | AM28: =AVERAGE(V15:W15) -> 158 | AN28: =AVERAGE(X15:Y15) -> 7 | AP28: 34159.5 | AQ28: 37927 | AR28: 233 | AS28: 211 | AT28: 183 | AU28: 182 | AV28: 149 | AW28: 143 | AX28: 165 | AY28: 178 | AZ28: 151
A29: Kinase 8 | B29: =AVERAGE(B16:C16) -> 23642 | C29: =AVERAGE(D16:E16) -> 21062.5 | D29: =AVERAGE(F16:G16) -> 23772.5 | E29: =AVERAGE(H16:I16) -> 24901 | F29: =AVERAGE(J16:K16) -> 25427.5 | G29: =AVERAGE(L16:M16) -> 20946 | H29: =AVERAGE(N16:O16) -> 23060 | I29: =AVERAGE(P16:Q16) -> 23243 | J29: =AVERAGE(R16:S16) -> 22103 | K29: =AVERAGE(T16:U16) -> 24390.5 | L29: =AVERAGE(V16:W16) -> 25258 | M29: =AVERAGE(X16:Y16) -> 523 | O29: 23119 | P29: 20539.5 | Q29: 23249.5 | R29: 24378 | S29: 24904.5 | T29: 20423 | U29: 22537 | V29: 22720 | W29: 21580 | X29: 23867.5 | Y29: 24735 | AB29: Kinase 8 | AC29: =AVERAGE(B17:C17) -> 18268 | AD29: =AVERAGE(D17:E17) -> 24055.5 | AE29: =AVERAGE(F17:G17) -> 135 | AF29: =AVERAGE(H17:I17) -> 92 | AG29: =AVERAGE(J17:K17) -> 75 | AH29: =AVERAGE(L17:M17) -> 67 | AI29: =AVERAGE(N17:O17) -> 68 | AJ29: =AVERAGE(P17:Q17) -> 68 | AK29: =AVERAGE(R17:S17) -> 65 | AL29: =AVERAGE(T17:U17) -> 54 | AM29: =AVERAGE(V17:W17) -> 56 | AN29: =AVERAGE(X17:Y17) -> 7 | AP29: 18261 | AQ29: 24048.5 | AR29: 128 | AS29: 85 | AT29: 68 | AU29: 60 | AV29: 61 | AW29: 61 | AX29: 58 | AY29: 47 | AZ29: 49
B32: =O21 -> 10000 | C32: 2500 | D32: 625 | E32: 156.25 | F32: 39.0625 | G32: 9.765625 | H32: 2.44140625 | I32: 0.6103515625 | J32: 0.1525878906 | K32: 0.03814697266 | AC32: =AP21 -> 10000 | AD32: 2500 | AE32: 625 | AF32: 156.25 | AG32: 39.0625 | AH32: 9.765625 | AI32: 2.44140625 | AJ32: 0.6103515625 | AK32: 0.1525878906 | AL32: 0.03814697266
A33: Kinase 1 | B33: =O22/$Y22*100 -> 105.694879 | C33: 96.37200707 | D33: 106.588098 | E33: 104.7724804 | F33: 100.8705238 | G33: 98.35945985 | H33: 96.35903837 | I33: 105.565192 | J33: 100.2593739 | K33: 105.453337 | AB33: Kinase 1 | AC33: =AP22/$AZ22*100 -> 16469.84733 | AD33: 23910.68702 | AE33: 116.0305344 | AF33: 92.36641221 | AG33: 99.23664122 | AH33: 87.02290076 | AI33: 84.73282443 | AJ33: 85.49618321 | AK33: 98.47328244 | AL33: 100
A34: Kinase 2 | B34: 3.156247283 | C34: 4.495261282 | D34: 17.8158421 | E34: 40.11390314 | F34: 62.92496305 | G34: 67.38544474 | H34: 74.51960699 | I34: 85.47517607 | J34: 98.25232588 | K34: 109.8339275 | AB34: Kinase 2 | AC34: 12590.67797 | AD34: 3740.677966 | AE34: 42.37288136 | AF34: 86.44067797 | AG34: 62.71186441 | AH34: 54.23728814 | AI34: 77.96610169 | AJ34: 72.88135593 | AK34: 84.74576271 | AL34: 98.30508475
A35: Kinase 3 | B35: 98.46253439 | C35: 84.8721476 | D35: 102.2900146 | E35: 105.9273345 | F35: 100.4369639 | G35: 99.74105842 | H35: 94.21427415 | I35: 97.20424017 | J35: 95.21767276 | K35: 97.21233209 | AB35: Kinase 3 | AC35: 16406.66667 | AD35: 17113.33333 | AE35: 188 | AF35: 136 | AG35: 121.3333333 | AH35: 126.6666667 | AI35: 130.6666667 | AJ35: 114.6666667 | AK35: 97.33333333 | AL35: 100
A36: Kinase 4 | B36: 114.7153624 | C36: 98.92164763 | D36: 112.8406882 | E36: 116.0473053 | F36: 119.1923022 | G36: 117.1920178 | H36: 118.6021709 | I36: 114.6703323 | J36: 112.0159264 | K36: 103.1307769 | AB36: Kinase 4 | AC36: 22738.88889 | AD36: 33641.66667 | AE36: 208.3333333 | AF36: 172.2222222 | AG36: 133.3333333 | AH36: 133.3333333 | AI36: 161.1111111 | AJ36: 137.5 | AK36: 143.0555556 | AL36: 126.3888889
A37: Kinase 5 | B37: 102.7007804 | C37: 100 | D37: 116.0807186 | E37: 121.6103073 | F37: 117.1049423 | G37: 113.6928955 | H37: 112.0752723 | I37: 105.7348399 | J37: 103.9587059 | K37: 105.8019021 | AB37: Kinase 5 | AC37: 3420.930233 | AD37: 29105.23256 | AE37: 176.744186 | AF37: 146.5116279 | AG37: 125.5813953 | AH37: 115.1162791 | AI37: 104.6511628 | AJ37: 101.1627907 | AK37: 88.37209302 | AL37: 95.34883721
A38: Kinase 6 | B38: 94.37403183 | C38: 91.45542881 | D38: 105.4781017 | E38: 112.7587664 | F38: 108.3614984 | G38: 107.3334742 | H38: 106.9743698 | I38: 104.7422898 | J38: 103.147444 | K38: 107.3545979 | AB38: Kinase 6 | AC38: 14627.17391 | AD38: 16502.71739 | AE38: 166.3043478 | AF38: 150 | AG38: 127.173913 | AH38: 128.2608696 | AI38: 113.0434783 | AJ38: 121.7391304 | AK38: 135.8695652 | AL38: 127.173913
A39: Kinase 7 | B39: 87.99509423 | C39: 75.64744144 | D39: 93.44400521 | E39: 98.00812518 | F39: 96.35133211 | G39: 93.95538814 | H39: 86.54745349 | I39: 92.46066075 | J39: 88.7473856 | K39: 98.31583097 | AB39: Kinase 7 | AC39: 22622.18543 | AD39: 25117.21854 | AE39: 154.3046358 | AF39: 139.7350993 | AG39: 121.192053 | AH39: 120.5298013 | AI39: 98.67549669 | AJ39: 94.70198675 | AK39: 109.2715232 | AL39: 117.8807947 | BJ39: 10000 | BK39: 2500 | BL39: 625 | BM39: 156.25 | BN39: 39.0625 | BO39: 9.765625 | BP39: 2.44140625 | BQ39: 0.6103515625 | BR39: 0.1525878906 | BS39: 0.03814697266
A40: Kinase 8 | B40: 93.46674752 | C40: 83.03820497 | D40: 93.99434 | E40: 98.55670103 | F40: 100.6852638 | G40: 82.56721245 | H40: 91.11380635 | I40: 91.85364868 | J40: 87.24479483 | K40: 96.49282393 | AB40: Kinase 8 | AC40: 37267.34694 | AD40: 49078.57143 | AE40: 261.2244898 | AF40: 173.4693878 | AG40: 138.7755102 | AH40: 122.4489796 | AI40: 124.4897959 | AJ40: 124.4897959 | AK40: 118.3673469 | AL40: 95.91836735 | BI40: Kinase 1 | BJ40: =$BV$2 -> 1.646060495 | BK40: =$BW$2 -> 2.436994856 | BL40: =$BX$2 -> 2.171057506 | BM40: =$BY$2 -> 1.318223934 | BN40: =$BZ$2 -> 4.016571014 | BO40: =$CA$2 -> 1.460362863 | BP40: =$CB$2 -> 5.165145259 | BQ40: =$CC$2 -> 2.512649447 | BR40: =$CD$2 -> 6.219724407 | BS40: =$CE$2 -> 3.25773254 | BW40: Kinase 1 | BX40: =$BV$3 -> 11565.78397 | BY40: =$BW$3 -> 617.5039372 | BZ40: =$BX$3 -> 17.2728374 | CA40: =$BY$3 -> 14.03418039 | CB40: =$BZ$3 -> 6.477314026 | CC40: =$CA$3 -> 25.9092561 | CD40: =$CB$3 -> 18.35238974 | CE40: =$CC$3 -> 10.79552338 | CF40: =$CD$3 -> 14.03418039 | CG40: =$CE$3 -> 9.715971039
BI41: Kinase 2 | BJ41: =$BV$4 -> 0.1352608398 | BK41: =$BW$4 -> 0.2828181196 | BL41: =$BX$4 -> 1.684612278 | BM41: =$BY$4 -> 1.284977978 | BN41: =$BZ$4 -> 1.782983797 | BO41: =$CA$4 -> 11.58324646 | BP41: =$CB$4 -> 2.944997376 | BQ41: =$CC$4 -> 5.748585692 | BR41: =$CD$4 -> 4.832500913 | BS41: =$CE$4 -> 0.1598537198 | BW41: Kinase 2 | BX41: =$BV$5 -> 962.3843141 | BY41: =$BW$5 -> 975.5676608 | BZ41: =$BX$5 -> 26.36669354 | CA41: =$BY$5 -> 11.9848607 | CB41: =$BZ$5 -> 21.57274926 | CC41: =$CA$5 -> 14.38183284 | CD41: =$CB$5 -> 9.587888558 | CE41: =$CC$5 -> 35.95458209 | CF41: =$CD$5 -> 4.793944279 | CG41: =$CE$5 -> 47.93944279
BI42: Kinase 3 | BJ42: =$BV$6 -> 0.9956026859 | BK42: =$BW$6 -> 4.617536595 | BL42: =$BX$6 -> 0.675178833 | BM42: =$BY$6 -> 4.377218705 | BN42: =$BZ$6 -> 6.294039968 | BO42: =$CA$6 -> 3.593324637 | BP42: =$CB$6 -> 1.613562974 | BQ42: =$CC$6 -> 8.828821519 | BR42: =$CD$6 -> 1.224476867 | BS42: =$CE$6 -> 2.260132534 | BW42: Kinase 3 | BX42: =$BV$7 -> 1161.540739 | BY42: =$BW$7 -> 11.3137085 | BZ42: =$BX$7 -> 52.79730633 | CA42: =$BY$7 -> 32.05550741 | CB42: =$BZ$7 -> 3.771236166 | CC42: =$CA$7 -> 30.16988933 | CD42: =$CB$7 -> 1.885618083 | CE42: =$CC$7 -> 16.97056275 | CF42: =$CD$7 -> 11.3137085 | CG42: =$CE$7 -> 22.627417
A43: =$B$19/20 -> 500 | B43: IC50 | C43: 1261.30364 | AB43: =$AC$19/20 -> 500 | AC43: IC50 | AD43: 769.5730113 | BI43: Kinase 4 | BJ43: =$BV$8 -> 0.5597328173 | BK43: =$BW$8 -> 12.85374464 | BL43: =$BX$8 -> 12.36104569 | BM43: =$BY$8 -> 2.657892959 | BN43: =$BZ$8 -> 3.901371253 | BO43: =$CA$8 -> 5.154904628 | BP43: =$CB$8 -> 2.141732157 | BQ43: =$CC$8 -> 19.61411046 | BR43: =$CD$8 -> 10.87289377 | BS43: =$CE$8 -> 4.293519395 | BW43: Kinase 4 | BX43: =$BV$9 -> 1826.692518 | BY43: =$BW$9 -> 5364.19061 | BZ43: =$BX$9 -> 19.64185503 | CA43: =$BY$9 -> 27.49859705 | CB43: =$BZ$9 -> 23.57022604 | CC43: =$CA$9 -> 0 | CD43: =$CB$9 -> 15.71348403 | CE43: =$CC$9 -> 72.67486362 | CF43: =$CD$9 -> 5.89255651 | CG43: =$CE$9 -> 25.53441154
A44: 1 | B44: HillSlope | C44: 0 | I44: CAMK-1 | K44: =I45&" Dose-Response using "&I44 -> CHK2 Inhibitor Dose-Response using CAMK-1 | M44: IC50 | AB44: 1 | AC44: HillSlope | AD44: 0 | AJ44: TK-3 | AL44: =AJ45&" Dose-Response using "&AJ44 -> Blank Dose-Response using TK-3 | AN44: IC50 | BI44: Kinase 5 | BJ44: =$BV$10 -> 1.732992152 | BK44: =$BW$10 -> 0.4943194861 | BL44: =$BX$10 -> 1.801966964 | BM44: =$BY$10 -> 4.897211653 | BN44: =$BZ$10 -> 5.653060635 | BO44: =$CA$10 -> 1.482958458 | BP44: =$CB$10 -> 2.741748778 | BQ44: =$CC$10 -> 11.54753311 | BR44: =$CD$10 -> 9.765683801 | BS44: =$CE$10 -> 1.117966745 | BW44: Kinase 5 | BX44: =$BV$11 -> 527.8634343 | BY44: =$BW$11 -> 3510.045173 | BZ44: =$BX$11 -> 37.82199062 | CA44: =$BY$11 -> 24.66651562 | CB44: =$BZ$11 -> 18.08877812 | CC44: =$CA$11 -> 16.44434375 | CD44: =$CB$11 -> 11.51104062 | CE44: =$CC$11 -> 0 | CF44: =$CD$11 -> 18.08877812 | CG44: =$CE$11 -> 37.82199062
A45: 100 | B45: Top | C45: 204.0593887 | D45: Min | E45: =MIN(D48:D57) -> 102.0296943 | I45: CHK2 Inhibitor | J45: (nM) | K45: =I45&" "&J45 -> CHK2 Inhibitor (nM) | L45: CHK1 | M45: =IF(AND(MAX(C55:C57)>60,MIN(C48:C50)<40, E45<E46, C45>25,C44>0.2), C43,"N/C") -> N/C | AB45: 100 | AC45: Top | AD45: 8228.778257 | AE45: Min | AF45: =MIN(AE48:AE57) -> 4114.389128 | AJ45: Blank | AK45: (nM) | AL45: =AJ45&" "&AK45 -> Blank (nM) | AM45: AXL1 | AN45: =IF(AND(MAX(AD55:AD57)>60,MIN(AD48:AD50)<40, AF45<AF46, AD45>25,AD44>0.2), AD43,"N/C") -> N/C | BI45: Kinase 6 | BJ45: =$BV$12 -> 5.974708755 | BK45: =$BW$12 -> 6.69665273 | BL45: =$BX$12 -> 4.192253977 | BM45: =$BY$12 -> 4.252001064 | BN45: =$BZ$12 -> 6.218676029 | BO45: =$CA$12 -> 2.08616914 | BP45: =$CB$12 -> 6.328212357 | BQ45: =$CC$12 -> 13.05971755 | BR45: =$CD$12 -> 7.388723161 | BS45: =$CE$12 -> 1.638065984 | BW45: Kinase 6 | BX45: =$BV$13 -> 43.04128233 | BY45: =$BW$13 -> 340.487287 | BZ45: =$BX$13 -> 32.28096175 | CA45: =$BY$13 -> 27.66939579 | CB45: =$BZ$13 -> 23.05782982 | CC45: =$CA$13 -> 15.37188655 | CD45: =$CB$13 -> 12.29750924 | CE45: =$CC$13 -> 3.07437731 | CF45: =$CD$13 -> 10.76032058 | CG45: =$CE$13 -> 10.76032058
A46: 0 | B46: Bottom | C46: 0 | D46: 50% | E46: =(C45+C46)/2 -> 102.0296943 | L46: CHK2 | M46: =IF(AND(MAX(C72:C74)>60,MIN(C65:C67)<40, E62<E63, C62>25, C61>0.2), C60,"N/C") -> 36.06207705 | AB46: 0 | AC46: Bottom | AD46: 0 | AE46: 50% | AF46: =(AD45+AD46)/2 -> 4114.389128 | AM46: EPHA1 | AN46: =IF(AND(MAX(AD72:AD74)>60,MIN(AD65:AD67)<40, AF62<AF63, AD62>25, AD61>0.2), AD60,"N/C") -> N/C | BI46: Kinase 7 | BJ46: =$BV$14 -> 4.974161433 | BK46: =$BW$14 -> 2.871138013 | BL46: =$BX$14 -> 2.418941519 | BM46: =$BY$14 -> 3.149889276 | BN46: =$BZ$14 -> 1.488222023 | BO46: =$CA$14 -> 3.677968058 | BP46: =$CB$14 -> 11.87170658 | BQ46: =$CC$14 -> 3.809600599 | BR46: =$CD$14 -> 6.672995522 | BS46: =$CE$14 -> 0.7355936117 | BW46: Kinase 7 | BX46: =$BV$15 -> 1920.427092 | BY46: =$BW$15 -> 1487.265654 | BZ46: =$BX$15 -> 29.97008874 | CA46: =$BY$15 -> 0 | CB46: =$BZ$15 -> 22.47756655 | CC46: =$CA$15 -> 10.302218 | CD46: =$CB$15 -> 11.23878328 | CE46: =$CC$15 -> 18.73130546 | CF46: =$CD$15 -> 0 | CG46: =$CE$15 -> 0.9365652731
A47: Kinase 1 | C47: Raw | D47: Analysis | E47: Sqare difference | L47: MAPKAPK2 | M47: =IF(AND(MAX(C89:C91)>60,MIN(C82:C84)<40, E79<E80, C79>25, C78>0.2), C77,"N/C") -> N/C | AB47: Kinase 1 | AD47: Raw | AE47: Analysis | AF47: Sqare difference | AM47: FAK | AN47: =IF(AND(MAX(AD89:AD91)>60,MIN(AD82:AD84)<40, AF79<AF80, AD79>25, AD78>0.2), AD77,"N/C") -> N/C | BI47: Kinase 8 | BJ47: =$BV$16 -> 0.2973078845 | BK47: =$BW$16 -> 6.577936946 | BL47: =$BX$16 -> 0.4716903938 | BM47: =$BY$16 -> 2.950209008 | BN47: =$BZ$16 -> 1.380766425 | BO47: =$CA$16 -> 3.905024714 | BP47: =$CB$16 -> 1.800999685 | BQ47: =$CC$16 -> 11.18906789 | BR47: =$CD$16 -> 15.04263547 | BS47: =$CE$16 -> 0.5059951497 | BW47: Kinase 8 | BX47: =$BV$17 -> 929.340341 | BY47: =$BW$17 -> 1031.798671 | BZ47: =$BX$17 -> 77.92605344 | CA47: =$BY$17 -> 40.40610178 | CB47: =$BZ$17 -> 31.7476514 | CC47: =$CA$17 -> 8.658450382 | CD47: =$CB$17 -> 0 | CE47: =$CC$17 -> 11.54460051 | CF47: =$CD$17 -> 2.886150127 | CG47: =$CE$17 -> 0
B48: =$B$32 -> 10000 | C48: =$B$33 -> 105.694879 | D48: =$C$46+($C$45-$C$46)/(1+((B48/$C$43)^$C$44)) -> 102.0296943 | E48: =(C48-D48)^2 -> 13.43357857 | L48: MARK1 | M48: =IF(AND(MAX(C106:C108)>60,MIN(C99:C101)<40, E96<E97, C96>25, C95>0.2), C94,"N/C") -> N/C | AC48: =$AC$32 -> 10000 | AD48: =$AC$33 -> 16469.84733 | AE48: =$AD$46+($AD$45-$AD$46)/(1+((AC48/$AD$43)^$AD$44)) -> 4114.389128 | AF48: =(AD48-AE48)^2 -> 152657347.3 | AM48: ITK | AN48: =IF(AND(MAX(AD106:AD108)>60,MIN(AD99:AD101)<40, AF96<AF97, AD96>25, AD95>0.2), AD94,"N/C") -> N/C
B49: =$C$32 -> 2500 | C49: =$C$33 -> 96.37200707 | D49: =$C$46+($C$45-$C$46)/(1+((B49/$C$43)^$C$44)) -> 102.0296943 | E49: =(C49-D49)^2 -> 32.00942514 | L49: MELK | M49: =IF(AND(MAX(C123:C125)>60,MIN(C116:C118)<40, E113<E114, C113>25, C112>0.2), C111,"N/C") -> N/C | AC49: =$AD$32 -> 2500 | AD49: =$AD$33 -> 23910.68702 | AE49: =$AD$46+($AD$45-$AD$46)/(1+((AC49/$AD$43)^$AD$44)) -> 4114.389128 | AF49: =(AD49-AE49)^2 -> 391893410.3 | AM49: JAK3 | AN49: =IF(AND(MAX(AD123:AD125)>60,MIN(AD116:AD118)<40, AF113<AF114, AD113>25, AD112>0.2), AD111,"N/C") -> N/C
B50: =$D$32 -> 625 | C50: =$D$33 -> 106.588098 | D50: 102.0296943 | E50: 20.77904383 | L50: PASK | M50: =IF(AND(MAX(C140:C142)>60,MIN(C133:C135)<40, E130<E131, C130>25, C129>0.2), C128,"N/C") -> N/C | AC50: =$AE$32 -> 625 | AD50: =$AE$33 -> 116.0305344 | AE50: 4114.389128 | AF50: 15986871.45 | AM50: PYK2 | AN50: =IF(AND(MAX(AD140:AD142)>60,MIN(AD133:AD135)<40, AF130<AF131, AD130>25, AD129>0.2), AD128,"N/C") -> N/C
B51: =$E$32 -> 156.25 | C51: =$E$33 -> 104.7724804 | D51: 102.0296943 | E51: 7.52287557 | L51: PIM1 | M51: =IF(AND(MAX(C157:C159)>60,MIN(C150:C152)<40, E147<E148, C147>25, C146>0.2), C145,"N/C") -> N/C | AC51: =$AF$32 -> 156.25 | AD51: =$AF$33 -> 92.36641221 | AE51: 4114.389128 | AF51: 16176666.73 | AM51: SYK | AN51: =IF(AND(MAX(AD157:AD159)>60,MIN(AD150:AD152)<40, AF147<AF148, AD147>25, AD146>0.2), AD145,"N/C") -> N/C
B52: =$F$32 -> 39.0625 | C52: =$F$33 -> 100.8705238 | D52: 102.0296943 | E52: 1.343676378 | L52: PKCmu (PKD1) | M52: =IF(AND(MAX(C174:C176)>60,MIN(C167:C169)<40, E164<E165, C164>25, C163>0.2), C162,"N/C") -> N/C | AC52: =$AG$32 -> 39.0625 | AD52: =$AG$33 -> 99.23664122 | AE52: 4114.389128 | AF52: 16121449.5 | AM52: TRKA | AN52: =IF(AND(MAX(AD174:AD176)>60,MIN(AD167:AD169)<40, AF164<AF165, AD164>25, AD163>0.2), AD162,"N/C") -> N/C
B53: =$G$32 -> 9.765625 | C53: =$G$33 -> 98.35945985 | D53: 102.0296943 | E53: 13.4706211 | AC53: =$AH$32 -> 9.765625 | AD53: =$AH$33 -> 87.02290076 | AE53: 4114.389128 | AF53: 16219678.73
B54: =$H$32 -> 2.44140625 | C54: =$H$33 -> 96.35903837 | D54: 102.0296943 | E54: 32.15633899 | AC54: =$AI$32 -> 2.44140625 | AD54: =$AI$33 -> 84.73282443 | AE54: 4114.389128 | AF54: 16238129.93
B55: =$I$32 -> 0.6103515625 | C55: =$I$33 -> 105.565192 | D55: 102.0296943 | E55: 12.49974391 | AC55: =$AJ$32 -> 0.6103515625 | AD55: =$AJ$33 -> 85.49618321 | AE55: 4114.389128 | AF55: 16231978.36
B56: =$J$32 -> 0.1525878906 | C56: =$J$33 -> 100.2593739 | D56: 102.0296943 | E56: 3.134034294 | AC56: =$AK$32 -> 0.1525878906 | AD56: =$AK$33 -> 98.47328244 | AE56: 4114.389128 | AF56: 16127580.08
B57: =$K$32 -> 0.03814697266 | C57: =$K$33 -> 105.453337 | D57: 102.0296943 | E57: 11.72132919 | AC57: =$AL$32 -> 0.03814697266 | AD57: =$AL$33 -> 100 | AE57: 4114.389128 | AF57: 16115320.07
E58: =SQRT(AVERAGE(E48:E57)) -> 3.847995153 | AF58: =SQRT(AVERAGE(AF48:AF57)) -> 8208.33986
B60: IC50 | C60: 36.06207705 | AC60: IC50 | AD60: 713.0739282
B61: HillSlope | C61: 0.471327996 | AC61: HillSlope | AD61: 0
B62: Top | C62: 105.684173 | D62: Min | E62: =MIN(D65:D74) -> 6.965749177 | AC62: Top | AD62: 3382.203263 | AE62: Min | AF62: =MIN(AE65:AE74) -> 1691.101632
B63: Bottom | C63: 0 | D63: 50% | E63: =(C62+C63)/2 -> 52.8420865 | I63: Raw | J63: Analysis | K63: Raw | L63: Analysis | M63: Raw | N63: Analysis | O63: Raw | P63: Analysis | Q63: Raw | R63: Analysis | S63: Raw | T63: Analysis | U63: Raw | V63: Analysis | W63: Raw | X63: Analysis | AC63: Bottom | AD63: 0 | AE63: 50% | AF63: =(AD62+AD63)/2 -> 1691.101632 | AJ63: Raw | AK63: Analysis | AL63: Raw | AM63: Analysis | AN63: Raw | AO63: Analysis | AP63: Raw | AQ63: Analysis | AR63: Raw | AS63: Analysis | AT63: Raw | AU63: Analysis | AV63: Raw | AW63: Analysis | AX63: Raw | AY63: Analysis
A64: Kinase 2 | C64: Raw | D64: Analysis | E64: Sqare difference | I64: =$L$45 -> CHK1 | K64: =$L$46 -> CHK2 | M64: =$L$47 -> MAPKAPK2 | O64: =$L$48 -> MARK1 | Q64: =$L$49 -> MELK | S64: =$L$50 -> PASK | U64: =$L$51 -> PIM1 | W64: =$L$52 -> PKCmu (PKD1) | AB64: Kinase 2 | AD64: Raw | AE64: Analysis | AF64: Sqare difference | AJ64: =$AM$45 -> AXL1 | AL64: =$AM$46 -> EPHA1 | AN64: =$AM$47 -> FAK | AP64: =$AM$48 -> ITK | AR64: =$AM$49 -> JAK3 | AT64: =$AM$50 -> PYK2 | AV64: =$AM$51 -> SYK | AX64: =$AM$52 -> TRKA
B65: =$B$32 -> 10000 | C65: =$B$34 -> 3.156247283 | D65: =$C$63+($C$62-$C$63)/(1+((B65/$C$60)^$C$61)) -> 6.965749177 | E65: =(C65-D65)^2 -> 14.51230468 | H65: =B48 -> 10000 | I65: =C48 -> 105.694879 | J65: =D48 -> 102.0296943 | K65: =C65 -> 3.156247283 | L65: =D65 -> 6.965749177 | M65: =C82 -> 98.46253439 | N65: =D82 -> 97.54437831 | O65: =C99 -> 114.7153624 | P65: =D99 -> 112.672673 | Q65: =C116 -> 102.7007804 | R65: =D116 -> 109.8760364 | S65: =C133 -> 94.37403183 | T65: =D133 -> 99.36464681 | U65: =C150 -> 87.99509423 | V65: =D150 -> 87.24505431 | W65: =C167 -> 93.46674752 | X65: =D167 -> 91.75054765 | AC65: =$AC$32 -> 10000 | AD65: =$AC$34 -> 12590.67797 | AE65: =$AD$63+($AD$62-$AD$63)/(1+((AC65/$AD$60)^$AD$61)) -> 1691.101632 | AF65: =(AD65-AE65)^2 -> 118800764.3 | AI65: =AC48 -> 10000 | AJ65: =AD48 -> 16469.84733 | AK65: =AE48 -> 4114.389128 | AL65: =AD65 -> 12590.67797 | AM65: =AE65 -> 1691.101632 | AN65: =AD82 -> 16406.66667 | AO65: =AE82 -> 3453.466492 | AP65: =AD99 -> 22738.88889 | AQ65: =AE99 -> 5759.583337 | AR65: =AD116 -> 3420.930233 | AS65: =AE116 -> 3347.965116 | AT65: =AD133 -> 14627.17391 | AU65: =AE133 -> 3219.945652 | AV65: =AD150 -> 22622.18543 | AW65: =AE150 -> 4869.569533 | AX65: =AD167 -> 37267.34694 | AY65: =AE167 -> 8750.509808
B66: =$C$32 -> 2500 | C66: =$C$34 -> 4.495261282 | D66: =$C$63+($C$62-$C$63)/(1+((B66/$C$60)^$C$61)) -> 12.62154861 | E66: =(C66-D66)^2 -> 66.03654581 | H66: 2500 | I66: 96.37200707 | J66: 102.0296943 | K66: 4.495261282 | L66: 12.62154861 | M66: 84.8721476 | N66: 97.54593541 | O66: 98.92164763 | P66: 112.6860546 | Q66: 100 | R66: 109.8760364 | S66: 91.45542881 | T66: 100.4395475 | U66: 75.64744144 | V66: 88.11273911 | W66: 83.03820497 | X66: 91.78406299 | AC66: =$AD$32 -> 2500 | AD66: =$AD$34 -> 3740.677966 | AE66: =$AD$63+($AD$62-$AD$63)/(1+((AC66/$AD$60)^$AD$61)) -> 1691.101632 | AF66: =(AD66-AE66)^2 -> 4200763.151 | AI66: 2500 | AJ66: 23910.68702 | AK66: 4114.389128 | AL66: 3740.677966 | AM66: 1691.101632 | AN66: 17113.33333 | AO66: 3453.466492 | AP66: 33641.66667 | AQ66: 5759.583337 | AR66: 29105.23256 | AS66: 3347.965116 | AT66: 16502.71739 | AU66: 3219.945652 | AV66: 25117.21854 | AW66: 4869.569533 | AX66: 49078.57143 | AY66: 8750.509808
B67: =$D$32 -> 625 | C67: =$D$34 -> 17.8158421 | D67: 21.85298225 | E67: 16.29850057 | H67: 625 | I67: 106.588098 | J67: 102.0296943 | K67: 17.8158421 | L67: 21.85298225 | M67: 102.2900146 | N67: 97.54749251 | O67: 112.8406882 | P67: 112.6994363 | Q67: 116.0807186 | R67: 109.8760364 | S67: 105.4781017 | T67: 101.5145483 | U67: 93.44400521 | V67: 88.98051645 | W67: 93.99434 | X67: 91.81757833 | AC67: =$AE$32 -> 625 | AD67: =$AE$34 -> 42.37288136 | AE67: 1691.101632 | AF67: 2718306.492 | AI67: 625 | AJ67: 116.0305344 | AK67: 4114.389128 | AL67: 42.37288136 | AM67: 1691.101632 | AN67: 188 | AO67: 3453.466492 | AP67: 208.3333333 | AQ67: 5759.583337 | AR67: 176.744186 | AS67: 3347.965116 | AT67: 166.3043478 | AU67: 3219.945652 | AV67: 154.3046358 | AW67: 4869.569533 | AX67: 261.2244898 | AY67: 8750.509808
B68: =$E$32 -> 156.25 | C68: =$E$34 -> 40.11390314 | D68: 35.2768955 | E68: 23.39664292 | H68: 156.25 | I68: 104.7724804 | J68: 102.0296943 | K68: 40.11390314 | L68: 35.2768955 | M68: 105.9273345 | N68: 97.54904962 | O68: 116.0473053 | P68: 112.7128179 | Q68: 121.6103073 | R68: 109.8760364 | S68: 112.7587664 | T68: 102.5894049 | U68: 98.00812518 | V68: 89.84821986 | W68: 98.55670103 | X68: 91.85109367 | AC68: =$AF$32 -> 156.25 | AD68: =$AF$34 -> 86.44067797 | AE68: 1691.101632 | AF68: 2574936.776 | AI68: 156.25 | AJ68: 92.36641221 | AK68: 4114.389128 | AL68: 86.44067797 | AM68: 1691.101632 | AN68: 136 | AO68: 3453.466492 | AP68: 172.2222222 | AQ68: 5759.583337 | AR68: 146.5116279 | AS68: 3347.965116 | AT68: 150 | AU68: 3219.945652 | AV68: 139.7350993 | AW68: 4869.569533 | AX68: 173.4693878 | AY68: 8750.509808
B69: =$F$32 -> 39.0625 | C69: =$F$34 -> 62.92496305 | D69: 51.84694838 | E69: 122.722409 | H69: 39.0625 | I69: 100.8705238 | J69: 102.0296943 | K69: 62.92496305 | L69: 51.84694838 | M69: 100.4369639 | N69: 97.55060672 | O69: 119.1923022 | P69: 112.7261995 | Q69: 117.1049423 | R69: 109.8760364 | S69: 108.3614984 | T69: 103.6638735 | U69: 96.35133211 | V69: 90.71568289 | W69: 100.6852638 | X69: 91.88460899 | AC69: =$AG$32 -> 39.0625 | AD69: =$AG$34 -> 62.71186441 | AE69: 1691.101632 | AF69: 2651653.234 | AI69: 39.0625 | AJ69: 99.23664122 | AK69: 4114.389128 | AL69: 62.71186441 | AM69: 1691.101632 | AN69: 121.3333333 | AO69: 3453.466492 | AP69: 133.3333333 | AQ69: 5759.583337 | AR69: 125.5813953 | AS69: 3347.965116 | AT69: 127.173913 | AU69: 3219.945652 | AV69: 121.192053 | AW69: 4869.569533 | AX69: 138.7755102 | AY69: 8750.509808
B70: =$G$32 -> 9.765625 | C70: =$G$34 -> 67.38544474 | D70: 68.6151161 | E70: 1.512091636 | H70: 9.765625 | I70: 98.35945985 | J70: 102.0296943 | K70: 67.38544474 | L70: 68.6151161 | M70: 99.74105842 | N70: 97.55216382 | O70: 117.1920178 | P70: 112.7395812 | Q70: 113.6928955 | R70: 109.8760364 | S70: 107.3334742 | T70: 104.7377102 | U70: 93.95538814 | V70: 91.58273928 | W70: 82.56721245 | X70: 91.9181243 | AC70: =$AH$32 -> 9.765625 | AD70: =$AH$34 -> 54.23728814 | AE70: 1691.101632 | AF70: 2679324.879 | AI70: 9.765625 | AJ70: 87.02290076 | AK70: 4114.389128 | AL70: 54.23728814 | AM70: 1691.101632 | AN70: 126.6666667 | AO70: 3453.466492 | AP70: 133.3333333 | AQ70: 5759.583337 | AR70: 115.1162791 | AS70: 3347.965116 | AT70: 128.2608696 | AU70: 3219.945652 | AV70: 120.5298013 | AW70: 4869.569533 | AX70: 122.4489796 | AY70: 8750.509808
B71: =$H$32 -> 2.44140625 | C71: =$H$34 -> 74.51960699 | D71: 82.49640157 | E71: 63.62925179 | H71: 2.44140625 | I71: 96.35903837 | J71: 102.0296943 | K71: 74.51960699 | L71: 82.49640157 | M71: 94.21427415 | N71: 97.55372093 | O71: 118.6021709 | P71: 112.7529628 | Q71: 112.0752723 | R71: 109.8760364 | S71: 106.9743698 | T71: 105.8106722 | U71: 86.54745349 | V71: 92.44922309 | W71: 91.11380635 | X71: 91.95163957 | AC71: =$AI$32 -> 2.44140625 | AD71: =$AI$34 -> 77.96610169 | AE71: 1691.101632 | AF71: 2602206.238 | AI71: 2.44140625 | AJ71: 84.73282443 | AK71: 4114.389128 | AL71: 77.96610169 | AM71: 1691.101632 | AN71: 130.6666667 | AO71: 3453.466492 | AP71: 161.1111111 | AQ71: 5759.583337 | AR71: 104.6511628 | AS71: 3347.965116 | AT71: 113.0434783 | AU71: 3219.945652 | AV71: 98.67549669 | AW71: 4869.569533 | AX71: 124.4897959 | AY71: 8750.509808
B72: =$I$32 -> 0.6103515625 | C72: =$I$34 -> 85.47517607 | D72: 92.2010054 | E72: 45.23678018 | H72: 0.6103515625 | I72: 105.565192 | J72: 102.0296943 | K72: 85.47517607 | L72: 92.2010054 | M72: 97.20424017 | N72: 97.55527803 | O72: 114.6703323 | P72: 112.7663444 | Q72: 105.7348399 | R72: 109.8760364 | S72: 104.7422898 | T72: 106.8825171 | U72: 92.46066075 | V72: 93.31496882 | W72: 91.85364868 | X72: 91.9851548 | AC72: =$AJ$32 -> 0.6103515625 | AD72: =$AJ$34 -> 72.88135593 | AE72: 1691.101632 | AF72: 2618636.861 | AI72: 0.6103515625 | AJ72: 85.49618321 | AK72: 4114.389128 | AL72: 72.88135593 | AM72: 1691.101632 | AN72: 114.6666667 | AO72: 3453.466492 | AP72: 137.5 | AQ72: 5759.583337 | AR72: 101.1627907 | AS72: 3347.965116 | AT72: 121.7391304 | AU72: 3219.945652 | AV72: 94.70198675 | AW72: 4869.569533 | AX72: 124.4897959 | AY72: 8750.509808
B73: =$J$32 -> 0.1525878906 | C73: =$J$34 -> 98.25232588 | D73: 98.21190113 | E73: 0.001634160693 | H73: 0.1525878906 | I73: 100.2593739 | J73: 102.0296943 | K73: 98.25232588 | L73: 98.21190113 | M73: 95.21767276 | N73: 97.55683513 | O73: 112.0159264 | P73: 112.7797261 | Q73: 103.9587059 | R73: 109.8760364 | S73: 103.147444 | T73: 107.9530036 | U73: 88.7473856 | V73: 94.17981152 | W73: 87.24479483 | X73: 92.01866998 | AC73: =$AK$32 -> 0.1525878906 | AD73: =$AK$34 -> 84.74576271 | AE73: 1691.101632 | AF73: 2580379.178 | AI73: 0.1525878906 | AJ73: 98.47328244 | AK73: 4114.389128 | AL73: 84.74576271 | AM73: 1691.101632 | AN73: 97.33333333 | AO73: 3453.466492 | AP73: 143.0555556 | AQ73: 5759.583337 | AR73: 88.37209302 | AS73: 3347.965116 | AT73: 135.8695652 | AU73: 3219.945652 | AV73: 109.2715232 | AW73: 4869.569533 | AX73: 118.3673469 | AY73: 8750.509808
B74: =$K$32 -> 0.03814697266 | C74: =$K$34 -> 109.8339275 | D74: 101.660051 | E74: 66.81225704 | H74: 0.03814697266 | I74: 105.453337 | J74: 102.0296943 | K74: 109.8339275 | L74: 101.660051 | M74: 97.21233209 | N74: 97.55839224 | O74: 103.1307769 | P74: 112.7931077 | Q74: 105.8019021 | R74: 109.8760364 | S74: 107.3545979 | T74: 109.0218918 | U74: 98.31583097 | V74: 95.04358696 | W74: 96.49282393 | X74: 92.05218511 | AC74: =$AL$32 -> 0.03814697266 | AD74: =$AL$34 -> 98.30508475 | AE74: 1691.101632 | AF74: 2537000.84 | AI74: 0.03814697266 | AJ74: 100 | AK74: 4114.389128 | AL74: 98.30508475 | AM74: 1691.101632 | AN74: 100 | AO74: 3453.466492 | AP74: 126.3888889 | AQ74: 5759.583337 | AR74: 95.34883721 | AS74: 3347.965116 | AT74: 127.173913 | AU74: 3219.945652 | AV74: 117.8807947 | AW74: 4869.569533 | AX74: 95.91836735 | AY74: 8750.509808
E75: =SQRT(AVERAGE(E65:E74)) -> 6.481962803 | AF75: =SQRT(AVERAGE(AF65:AF74)) -> 3794.258451
B77: IC50 | C77: 1319.009728 | I77: Kinase 1 | J77: Kinase 2 | K77: Kinase 3 | L77: Kinase 4 | M77: Kinase 5 | N77: Kinase 6 | O77: Kinase 7 | P77: Kinase 8 | AC77: IC50 | AD77: 762.3072897 | AJ77: Kinase 1 | AK77: Kinase 2 | AL77: Kinase 3 | AM77: Kinase 4 | AN77: Kinase 5 | AO77: Kinase 6 | AP77: Kinase 7 | AQ77: Kinase 8
B78: HillSlope | C78: 2.302923824e-05 | H78: =H65 -> 10000 | I78: =$BV$2 -> 1.646060495 | J78: =$BV$4 -> 0.1352608398 | K78: =$BV$6 -> 0.9956026859 | L78: =$BV$8 -> 0.5597328173 | M78: =$BV$10 -> 1.732992152 | N78: =$BV$12 -> 5.974708755 | O78: =$BV$14 -> 4.974161433 | P78: =$BV$16 -> 0.2973078845 | AC78: HillSlope | AD78: 0 | AI78: =AI65 -> 10000 | AJ78: =$BV$3 -> 11565.78397 | AK78: =$BV$5 -> 962.3843141 | AL78: =$BV$7 -> 1161.540739 | AM78: =$BV$9 -> 1826.692518 | AN78: =$BV$11 -> 527.8634343 | AO78: =$BV$13 -> 43.04128233 | AP78: =$BV$15 -> 1920.427092 | AQ78: =$BV$17 -> 929.340341
B79: Top | C79: 195.0933072 | D79: Min | E79: =MIN(D82:D91) -> 97.54437831 | H79: 2500 | I79: =$BW$2 -> 2.436994856 | J79: =$BW$4 -> 0.2828181196 | K79: =$BW$6 -> 4.617536595 | L79: =$BW$8 -> 12.85374464 | M79: =$BW$10 -> 0.4943194861 | N79: =$BW$12 -> 6.69665273 | O79: =$BW$14 -> 2.871138013 | P79: =$BW$16 -> 6.577936946 | AC79: Top | AD79: 6906.932984 | AE79: Min | AF79: =MIN(AE82:AE91) -> 3453.466492 | AI79: 2500 | AJ79: =$BW$3 -> 617.5039372 | AK79: =$BW$5 -> 975.5676608 | AL79: =$BW$7 -> 11.3137085 | AM79: =$BW$9 -> 5364.19061 | AN79: =$BW$11 -> 3510.045173 | AO79: =$BW$13 -> 340.487287 | AP79: =$BW$15 -> 1487.265654 | AQ79: =$BW$17 -> 1031.798671
B80: Bottom | C80: 0 | D80: 50% | E80: =(C79+C80)/2 -> 97.5466536 | H80: 625 | I80: =$BX$2 -> 2.171057506 | J80: =$BX$4 -> 1.684612278 | K80: =$BX$6 -> 0.675178833 | L80: =$BX$8 -> 12.36104569 | M80: =$BX$10 -> 1.801966964 | N80: =$BX$12 -> 4.192253977 | O80: =$BX$14 -> 2.418941519 | P80: =$BX$16 -> 0.4716903938 | AC80: Bottom | AD80: 0 | AE80: 50% | AF80: =(AD79+AD80)/2 -> 3453.466492 | AI80: 625 | AJ80: =$BX$3 -> 17.2728374 | AK80: =$BX$5 -> 26.36669354 | AL80: =$BX$7 -> 52.79730633 | AM80: =$BX$9 -> 19.64185503 | AN80: =$BX$11 -> 37.82199062 | AO80: =$BX$13 -> 32.28096175 | AP80: =$BX$15 -> 29.97008874 | AQ80: =$BX$17 -> 77.92605344
A81: Kinase 3 | C81: Raw | D81: Analysis | E81: Sqare difference | H81: 156.25 | I81: =$BY$2 -> 1.318223934 | J81: =$BY$4 -> 1.284977978 | K81: =$BY$6 -> 4.377218705 | L81: =$BY$8 -> 2.657892959 | M81: =$BY$10 -> 4.897211653 | N81: =$BY$12 -> 4.252001064 | O81: =$BY$14 -> 3.149889276 | P81: =$BY$16 -> 2.950209008 | AB81: Kinase 3 | AD81: Raw | AE81: Analysis | AF81: Sqare difference | AI81: 156.25 | AJ81: =$BY$3 -> 14.03418039 | AK81: =$BY$5 -> 11.9848607 | AL81: =$BY$7 -> 32.05550741 | AM81: =$BY$9 -> 27.49859705 | AN81: =$BY$11 -> 24.66651562 | AO81: =$BY$13 -> 27.66939579 | AP81: =$BY$15 -> 0 | AQ81: =$BY$17 -> 40.40610178
B82: =$B$32 -> 10000 | C82: =$B$35 -> 98.46253439 | D82: =$C$80+($C$79-$C$80)/(1+((B82/$C$77)^$C$78)) -> 97.54437831 | E82: =(C82-D82)^2 -> 0.8430105928 | H82: 39.0625 | I82: =$BZ$2 -> 4.016571014 | J82: =$BZ$4 -> 1.782983797 | K82: =$BZ$6 -> 6.294039968 | L82: =$BZ$8 -> 3.901371253 | M82: =$BZ$10 -> 5.653060635 | N82: =$BZ$12 -> 6.218676029 | O82: =$BZ$14 -> 1.488222023 | P82: =$BZ$16 -> 1.380766425 | AC82: =$AC$32 -> 10000 | AD82: =$AC$35 -> 16406.66667 | AE82: =$AD$80+($AD$79-$AD$80)/(1+((AC82/$AD$77)^$AD$78)) -> 3453.466492 | AF82: =(AD82-AE82)^2 -> 167785394.8 | AI82: 39.0625 | AJ82: =$BZ$3 -> 6.477314026 | AK82: =$BZ$5 -> 21.57274926 | AL82: =$BZ$7 -> 3.771236166 | AM82: =$BZ$9 -> 23.57022604 | AN82: =$BZ$11 -> 18.08877812 | AO82: =$BZ$13 -> 23.05782982 | AP82: =$BZ$15 -> 22.47756655 | AQ82: =$BZ$17 -> 31.7476514
B83: =$C$32 -> 2500 | C83: =$C$35 -> 84.8721476 | D83: =$C$80+($C$79-$C$80)/(1+((B83/$C$77)^$C$78)) -> 97.54593541 | E83: =(C83-D83)^2 -> 160.6248976 | H83: 9.765625 | I83: =$CA$2 -> 1.460362863 | J83: =$CA$4 -> 11.58324646 | K83: =$CA$6 -> 3.593324637 | L83: =$CA$8 -> 5.154904628 | M83: =$CA$10 -> 1.482958458 | N83: =$CA$12 -> 2.08616914 | O83: =$CA$14 -> 3.677968058 | P83: =$CA$16 -> 3.905024714 | AC83: =$AD$32 -> 2500 | AD83: =$AD$35 -> 17113.33333 | AE83: =$AD$80+($AD$79-$AD$80)/(1+((AC83/$AD$77)^$AD$78)) -> 3453.466492 | AF83: =(AD83-AE83)^2 -> 186591962.1 | AI83: 9.765625 | AJ83: =$CA$3 -> 25.9092561 | AK83: =$CA$5 -> 14.38183284 | AL83: =$CA$7 -> 30.16988933 | AM83: =$CA$9 -> 0 | AN83: =$CA$11 -> 16.44434375 | AO83: =$CA$13 -> 15.37188655 | AP83: =$CA$15 -> 10.302218 | AQ83: =$CA$17 -> 8.658450382
B84: =$D$32 -> 625 | C84: =$D$35 -> 102.2900146 | D84: 97.54749251 | E84: 22.49151541 | H84: 2.44140625 | I84: =$CB$2 -> 5.165145259 | J84: =$CB$4 -> 2.944997376 | K84: =$CB$6 -> 1.613562974 | L84: =$CB$8 -> 2.141732157 | M84: =$CB$10 -> 2.741748778 | N84: =$CB$12 -> 6.328212357 | O84: =$CB$14 -> 11.87170658 | P84: =$CB$16 -> 1.800999685 | AC84: =$AE$32 -> 625 | AD84: =$AE$35 -> 188 | AE84: 3453.466492 | AF84: 10663271.41 | AI84: 2.44140625 | AJ84: =$CB$3 -> 18.35238974 | AK84: =$CB$5 -> 9.587888558 | AL84: =$CB$7 -> 1.885618083 | AM84: =$CB$9 -> 15.71348403 | AN84: =$CB$11 -> 11.51104062 | AO84: =$CB$13 -> 12.29750924 | AP84: =$CB$15 -> 11.23878328 | AQ84: =$CB$17 -> 0
B85: =$E$32 -> 156.25 | C85: =$E$35 -> 105.9273345 | D85: 97.54904962 | E85: 70.19565791 | H85: 0.6103515625 | I85: =$CC$2 -> 2.512649447 | J85: =$CC$4 -> 5.748585692 | K85: =$CC$6 -> 8.828821519 | L85: =$CC$8 -> 19.61411046 | M85: =$CC$10 -> 11.54753311 | N85: =$CC$12 -> 13.05971755 | O85: =$CC$14 -> 3.809600599 | P85: =$CC$16 -> 11.18906789 | AC85: =$AF$32 -> 156.25 | AD85: =$AF$35 -> 136 | AE85: 3453.466492 | AF85: 11005583.93 | AI85: 0.6103515625 | AJ85: =$CC$3 -> 10.79552338 | AK85: =$CC$5 -> 35.95458209 | AL85: =$CC$7 -> 16.97056275 | AM85: =$CC$9 -> 72.67486362 | AN85: =$CC$11 -> 0 | AO85: =$CC$13 -> 3.07437731 | AP85: =$CC$15 -> 18.73130546 | AQ85: =$CC$17 -> 11.54460051
B86: =$F$32 -> 39.0625 | C86: =$F$35 -> 100.4369639 | D86: 97.55060672 | E86: 8.331057825 | H86: 0.1525878906 | I86: =$CD$2 -> 6.219724407 | J86: =$CD$4 -> 4.832500913 | K86: =$CD$6 -> 1.224476867 | L86: =$CD$8 -> 10.87289377 | M86: =$CD$10 -> 9.765683801 | N86: =$CD$12 -> 7.388723161 | O86: =$CD$14 -> 6.672995522 | P86: =$CD$16 -> 15.04263547 | AC86: =$AG$32 -> 39.0625 | AD86: =$AG$35 -> 121.3333333 | AE86: 3453.466492 | AF86: 11103111.39 | AI86: 0.1525878906 | AJ86: =$CD$3 -> 14.03418039 | AK86: =$CD$5 -> 4.793944279 | AL86: =$CD$7 -> 11.3137085 | AM86: =$CD$9 -> 5.89255651 | AN86: =$CD$11 -> 18.08877812 | AO86: =$CD$13 -> 10.76032058 | AP86: =$CD$15 -> 0 | AQ86: =$CD$17 -> 2.886150127
B87: =$G$32 -> 9.765625 | C87: =$G$35 -> 99.74105842 | D87: 97.55216382 | E87: 4.791259569 | H87: 0.03814697266 | I87: =$CE$2 -> 3.25773254 | J87: =$CE$4 -> 0.1598537198 | K87: =$CE$6 -> 2.260132534 | L87: =$CE$8 -> 4.293519395 | M87: =$CE$10 -> 1.117966745 | N87: =$CE$12 -> 1.638065984 | O87: =$CE$14 -> 0.7355936117 | P87: =$CE$16 -> 0.5059951497 | AC87: =$AH$32 -> 9.765625 | AD87: =$AH$35 -> 126.6666667 | AE87: 3453.466492 | AF87: 11067597.08 | AI87: 0.03814697266 | AJ87: =$CE$3 -> 9.715971039 | AK87: =$CE$5 -> 47.93944279 | AL87: =$CE$7 -> 22.627417 | AM87: =$CE$9 -> 25.53441154 | AN87: =$CE$11 -> 37.82199062 | AO87: =$CE$13 -> 10.76032058 | AP87: =$CE$15 -> 0.9365652731 | AQ87: =$CE$17 -> 0
B88: =$H$32 -> 2.44140625 | C88: =$H$35 -> 94.21427415 | D88: 97.55372093 | E88: 11.15190475 | AC88: =$AI$32 -> 2.44140625 | AD88: =$AI$35 -> 130.6666667 | AE88: 3453.466492 | AF88: 11040998.68
B89: =$I$32 -> 0.6103515625 | C89: =$I$35 -> 97.20424017 | D89: 97.55527803 | E89: 0.1232275806 | AC89: =$AJ$32 -> 0.6103515625 | AD89: =$AJ$35 -> 114.6666667 | AE89: 3453.466492 | AF89: 11147584.28
B90: =$J$32 -> 0.1525878906 | C90: =$J$35 -> 95.21767276 | D90: 97.55683513 | E90: 5.471680598 | AC90: =$AK$32 -> 0.1525878906 | AD90: =$AK$35 -> 97.33333333 | AE90: 3453.466492 | AF90: 11263629.78
B91: =$K$32 -> 0.03814697266 | C91: =$K$35 -> 97.21233209 | D91: 97.55839224 | E91: 0.1197576234 | AC91: =$AL$32 -> 0.03814697266 | AD91: =$AL$35 -> 100 | AE91: 3453.466492 | AF91: 11245737.51
E92: =SQRT(AVERAGE(E82:E91)) -> 5.330515636 | AF92: =SQRT(AVERAGE(AF82:AF91)) -> 6655.184978
B94: IC50 | C94: 1376.898157 | AC94: IC50 | AD94: 772.2886918
B95: HillSlope | C95: 0.0001713134533 | AC95: HillSlope | AD95: 0
B96: Top | C96: 225.3836242 | D96: Min | E96: =MIN(D99:D108) -> 112.672673 | AC96: Top | AD96: 11519.16667 | AE96: Min | AF96: =MIN(AE99:AE108) -> 5759.583337
B97: Bottom | C97: 0 | D97: 50% | E97: =(C96+C97)/2 -> 112.6918121 | AC97: Bottom | AD97: 0 | AE97: 50% | AF97: =(AD96+AD97)/2 -> 5759.583337
A98: Kinase 4 | C98: Raw | D98: Analysis | E98: Sqare difference | AB98: Kinase 4 | AD98: Raw | AE98: Analysis | AF98: Sqare difference
B99: =$B$32 -> 10000 | C99: =$B$36 -> 114.7153624 | D99: =$C$97+($C$96-$C$97)/(1+((B99/$C$94)^$C$95)) -> 112.672673 | E99: =(C99-D99)^2 -> 4.172579949 | AC99: =$AC$32 -> 10000 | AD99: =$AC$36 -> 22738.88889 | AE99: =$AD$97+($AD$96-$AD$97)/(1+((AC99/$AD$94)^$AD$95)) -> 5759.583337 | AF99: =(AD99-AE99)^2 -> 288296817
B100: =$C$32 -> 2500 | C100: =$C$36 -> 98.92164763 | D100: =$C$97+($C$96-$C$97)/(1+((B100/$C$94)^$C$95)) -> 112.6860546 | E100: =(C100-D100)^2 -> 189.4588999 | AC100: =$AD$32 -> 2500 | AD100: =$AD$36 -> 33641.66667 | AE100: =$AD$97+($AD$96-$AD$97)/(1+((AC100/$AD$94)^$AD$95)) -> 5759.583337 | AF100: =(AD100-AE100)^2 -> 777410570.8
B101: =$D$32 -> 625 | C101: =$D$36 -> 112.8406882 | D101: 112.6994363 | E101: 0.0199521247 | AC101: =$AE$32 -> 625 | AD101: =$AE$36 -> 208.3333333 | AE101: 5759.583337 | AF101: 30816376.6
B102: =$E$32 -> 156.25 | C102: =$E$36 -> 116.0473053 | D102: 112.7128179 | E102: 11.11880626 | AC102: =$AF$32 -> 156.25 | AD102: =$AF$36 -> 172.2222222 | AE102: 5759.583337 | AF102: 31218604.22
B103: =$F$32 -> 39.0625 | C103: =$F$36 -> 119.1923022 | D103: 112.7261995 | E103: 41.81048397 | AC103: =$AG$32 -> 39.0625 | AD103: =$AG$36 -> 133.3333333 | AE103: 5759.583337 | AF103: 31654689.1
B104: =$G$32 -> 9.765625 | C104: =$G$36 -> 117.1920178 | D104: 112.7395812 | E104: 19.82419213 | AC104: =$AH$32 -> 9.765625 | AD104: =$AH$36 -> 133.3333333 | AE104: 5759.583337 | AF104: 31654689.1
B105: =$H$32 -> 2.44140625 | C105: =$H$36 -> 118.6021709 | D105: 112.7529628 | E105: 34.2132356 | AC105: =$AI$32 -> 2.44140625 | AD105: =$AI$36 -> 161.1111111 | AE105: 5759.583337 | AF105: 31342891.26
B106: =$I$32 -> 0.6103515625 | C106: =$I$36 -> 114.6703323 | D106: 112.7663444 | E106: 3.625169671 | AC106: =$AJ$32 -> 0.6103515625 | AD106: =$AJ$36 -> 137.5 | AE106: 5759.583337 | AF106: 31607821.05
B107: =$J$32 -> 0.1525878906 | C107: =$J$36 -> 112.0159264 | D107: 112.7797261 | E107: 0.5833898863 | AC107: =$AK$32 -> 0.1525878906 | AD107: =$AK$36 -> 143.0555556 | AE107: 5759.583337 | AF107: 31545384.32
B108: =$K$32 -> 0.03814697266 | C108: =$K$36 -> 103.1307769 | D108: 112.7931077 | E108: 93.36063676 | AC108: =$AL$32 -> 0.03814697266 | AD108: =$AL$36 -> 126.3888889 | AE108: 5759.583337 | AF108: 31732879.69
E109: =SQRT(AVERAGE(E99:E108)) -> 6.310208762 | AF109: =SQRT(AVERAGE(AF99:AF108)) -> 11477.28506
B111: IC50 | C111: 1647.200852 | AC111: IC50 | AD111: 805.1699829
B112: HillSlope | C112: 0 | AC112: HillSlope | AD112: 0
B113: Top | C113: 219.7520728 | D113: Min | E113: =MIN(D116:D125) -> 109.8760364 | AC113: Top | AD113: 6695.930233 | AE113: Min | AF113: =MIN(AE116:AE125) -> 3347.965116
B114: Bottom | C114: 0 | D114: 50% | E114: =(C113+C114)/2 -> 109.8760364 | AC114: Bottom | AD114: 4.996106317e-09 | AE114: 50% | AF114: =(AD113+AD114)/2 -> 3347.965116
A115: Kinase 5 | C115: Raw | D115: Analysis | E115: Sqare difference | AB115: Kinase 5 | AD115: Raw | AE115: Analysis | AF115: Sqare difference
B116: =$B$32 -> 10000 | C116: =$B$37 -> 102.7007804 | D116: =$C$114+($C$113-$C$114)/(1+((B116/$C$111)^$C$112)) -> 109.8760364 | E116: =(C116-D116)^2 -> 51.48429947 | AC116: =$AC$32 -> 10000 | AD116: =$AC$37 -> 3420.930233 | AE116: =$AD$114+($AD$113-$AD$114)/(1+((AC116/$AD$111)^$AD$112)) -> 3347.965116 | AF116: =(AD116-AE116)^2 -> 5323.908189
B117: =$C$32 -> 2500 | C117: =$C$37 -> 100 | D117: =$C$114+($C$113-$C$114)/(1+((B117/$C$111)^$C$112)) -> 109.8760364 | E117: =(C117-D117)^2 -> 97.53609531 | AC117: =$AD$32 -> 2500 | AD117: =$AD$37 -> 29105.23256 | AE117: =$AD$114+($AD$113-$AD$114)/(1+((AC117/$AD$111)^$AD$112)) -> 3347.965116 | AF117: =(AD117-AE117)^2 -> 663436826.1
B118: =$D$32 -> 625 | C118: =$D$37 -> 116.0807186 | D118: 109.8760364 | E118: 38.49808077 | AC118: =$AE$32 -> 625 | AD118: =$AE$37 -> 176.744186 | AE118: 3347.965116 | AF118: 10056642.19
B119: =$E$32 -> 156.25 | C119: =$E$37 -> 121.6103073 | D119: 109.8760364 | E119: 137.6931124 | AC119: =$AF$32 -> 156.25 | AD119: =$AF$37 -> 146.5116279 | AE119: 3347.965116 | AF119: 10249304.44
B120: =$F$32 -> 39.0625 | C120: =$F$37 -> 117.1049423 | D120: 109.8760364 | E120: 52.25708006 | AC120: =$AG$32 -> 39.0625 | AD120: =$AG$37 -> 125.5813953 | AE120: 3347.965116 | AF120: 10383756.85
B121: =$G$32 -> 9.765625 | C121: =$G$37 -> 113.6928955 | D121: 109.8760364 | E121: 14.56841299 | AC121: =$AH$32 -> 9.765625 | AD121: =$AH$37 -> 115.1162791 | AE121: 3347.965116 | AF121: 10451311.6
B122: =$H$32 -> 2.44140625 | C122: =$H$37 -> 112.0752723 | D122: 109.8760364 | E122: 4.836638529 | AC122: =$AI$32 -> 2.44140625 | AD122: =$AI$37 -> 104.6511628 | AE122: 3347.965116 | AF122: 10519085.4
B123: =$I$32 -> 0.6103515625 | C123: =$I$37 -> 105.7348399 | D123: 109.8760364 | E123: 17.14950889 | AC123: =$AJ$32 -> 0.6103515625 | AD123: =$AJ$37 -> 101.1627907 | AE123: 3347.965116 | AF123: 10541725.34
B124: =$J$32 -> 0.1525878906 | C124: =$J$37 -> 103.9587059 | D124: 109.8760364 | E124: 35.01480043 | AC124: =$AK$32 -> 0.1525878906 | AD124: =$AK$37 -> 88.37209302 | AE124: 3347.965116 | AF124: 10624946.68
B125: =$K$32 -> 0.03814697266 | C125: =$K$37 -> 105.8019021 | D125: 109.8760364 | E125: 16.59857019 | AC125: =$AL$32 -> 0.03814697266 | AD125: =$AL$37 -> 95.34883721 | AE125: 3347.965116 | AF125: 10579512.66
E126: =SQRT(AVERAGE(E116:E125)) -> 6.823757023 | AF126: =SQRT(AVERAGE(AF116:AF125)) -> 8642.039315
B128: IC50 | C128: 1416.747261 | AC128: IC50 | AD128: 765.2332159
B129: HillSlope | C129: 0.01537386158 | AC129: HillSlope | AD129: 0
B130: Top | C130: 201.7598959 | D130: Min | E130: =MIN(D133:D142) -> 99.36464681 | AC130: Top | AD130: 6439.891304 | AE130: Min | AF130: =MIN(AE133:AE142) -> 3219.945652
B131: Bottom | C131: 0 | D131: 50% | E131: =(C130+C131)/2 -> 100.8799479 | AC131: Bottom | AD131: 8.532351706e-09 | AE131: 50% | AF131: =(AD130+AD131)/2 -> 3219.945652
A132: Kinase 6 | C132: Raw | D132: Analysis | E132: Sqare difference | AB132: Kinase 6 | AD132: Raw | AE132: Analysis | AF132: Sqare difference
B133: =$B$32 -> 10000 | C133: =$B$38 -> 94.37403183 | D133: =$C$131+($C$130-$C$131)/(1+((B133/$C$128)^$C$129)) -> 99.36464681 | E133: =(C133-D133)^2 -> 24.90623794 | AC133: =$AC$32 -> 10000 | AD133: =$AC$38 -> 14627.17391 | AE133: =$AD$131+($AD$130-$AD$131)/(1+((AC133/$AD$128)^$AD$129)) -> 3219.945652 | AF133: =(AD133-AE133)^2 -> 130124856.6
B134: =$C$32 -> 2500 | C134: =$C$38 -> 91.45542881 | D134: =$C$131+($C$130-$C$131)/(1+((B134/$C$128)^$C$129)) -> 100.4395475 | E134: =(C134-D134)^2 -> 80.71438938 | AC134: =$AD$32 -> 2500 | AD134: =$AD$38 -> 16502.71739 | AE134: =$AD$131+($AD$130-$AD$131)/(1+((AC134/$AD$128)^$AD$129)) -> 3219.945652 | AF134: =(AD134-AE134)^2 -> 176432025.1
B135: =$D$32 -> 625 | C135: =$D$38 -> 105.4781017 | D135: 101.5145483 | E135: 15.70975546 | AC135: =$AE$32 -> 625 | AD135: =$AE$38 -> 166.3043478 | AE135: 3219.945652 | AF135: 9324725.215
B136: =$E$32 -> 156.25 | C136: =$E$38 -> 112.7587664 | D136: 102.5894049 | E136: 103.4159123 | AC136: =$AF$32 -> 156.25 | AD136: =$AF$38 -> 150 | AE136: 3219.945652 | AF136: 9424566.307
B137: =$F$32 -> 39.0625 | C137: =$F$38 -> 108.3614984 | D137: 103.6638735 | E137: 22.06767998 | AC137: =$AG$32 -> 39.0625 | AD137: =$AG$38 -> 127.173913 | AE137: 3219.945652 | AF137: 9565237.03
B138: =$G$32 -> 9.765625 | C138: =$G$38 -> 107.3334742 | D138: 104.7377102 | E138: 6.737990336 | AC138: =$AH$32 -> 9.765625 | AD138: =$AH$38 -> 128.2608696 | AE138: 3219.945652 | AF138: 9558514.795
B139: =$H$32 -> 2.44140625 | C139: =$H$38 -> 106.9743698 | D139: 105.8106722 | E139: 1.354192091 | AC139: =$AI$32 -> 2.44140625 | AD139: =$AI$38 -> 113.0434783 | AE139: 3219.945652 | AF139: 9652841.118
B140: =$I$32 -> 0.6103515625 | C140: =$I$38 -> 104.7422898 | D140: 106.8825171 | E140: 4.580572834 | AC140: =$AJ$32 -> 0.6103515625 | AD140: =$AJ$38 -> 121.7391304 | AE140: 3219.945652 | AF140: 9598883.651
B141: =$J$32 -> 0.1525878906 | C141: =$J$38 -> 103.147444 | D141: 107.9530036 | E141: 23.09340331 | AC141: =$AK$32 -> 0.1525878906 | AD141: =$AK$38 -> 135.8695652 | AE141: 3219.945652 | AF141: 9511525.31
B142: =$K$32 -> 0.03814697266 | C142: =$K$38 -> 107.3545979 | D142: 109.0218918 | E142: 2.779868826 | AC142: =$AL$32 -> 0.03814697266 | AD142: =$AL$38 -> 127.173913 | AE142: 3219.945652 | AF142: 9565237.03
E143: =SQRT(AVERAGE(E133:E142)) -> 5.341909794 | AF143: =SQRT(SUM(AF133:AF142)) -> 19564.21254
B145: IC50 | C145: 1156.791046 | AC145: IC50 | AD145: 762.573833
B146: HillSlope | C146: 0.01413111964 | AC146: HillSlope | AD146: 0
B147: Top | C147: 177.1902714 | D147: Min | E147: =MIN(D150:D159) -> 87.24505431 | AC147: Top | AD147: 9739.139067 | AE147: Min | AF147: =MIN(AE150:AE159) -> 4869.569533
B148: Bottom | C148: 0 | D148: 50% | E148: =(C147+C148)/2 -> 88.59513568 | AC148: Bottom | AD148: 0 | AE148: 50% | AF148: =(AD147+AD148)/2 -> 4869.569533
A149: Kinase 7 | C149: Raw | D149: Analysis | E149: Sqare difference | AB149: Kinase 7 | AD149: Raw | AE149: Analysis | AF149: Sqare difference
B150: =$B$32 -> 10000 | C150: =$B$39 -> 87.99509423 | D150: =$C$148+($C$147-$C$148)/(1+((B150/$C$145)^$C$146)) -> 87.24505431 | E150: =(C150-D150)^2 -> 0.5625598746 | AC150: =$AC$32 -> 10000 | AD150: =$AC$39 -> 22622.18543 | AE150: =$AD$148+($AD$147-$AD$148)/(1+((AC150/$AD$145)^$AD$146)) -> 4869.569533 | AF150: =(AD150-AE150)^2 -> 315155371.2
B151: =$C$32 -> 2500 | C151: =$C$39 -> 75.64744144 | D151: =$C$148+($C$147-$C$148)/(1+((B151/$C$145)^$C$146)) -> 88.11273911 | E151: =(C151-D151)^2 -> 155.3836458 | AC151: =$AD$32 -> 2500 | AD151: =$AD$39 -> 25117.21854 | AE151: =$AD$148+($AD$147-$AD$148)/(1+((AC151/$AD$145)^$AD$146)) -> 4869.569533 | AF151: =(AD151-AE151)^2 -> 409967290.4
B152: =$D$32 -> 625 | C152: =$D$39 -> 93.44400521 | D152: 88.98051645 | E152: 19.92273189 | AC152: =$AE$32 -> 625 | AD152: =$AE$39 -> 154.3046358 | AE152: 4869.569533 | AF152: 22233723.05
B153: =$E$32 -> 156.25 | C153: =$E$39 -> 98.00812518 | D153: 89.84821986 | E153: 66.58405488 | AC153: =$AF$32 -> 156.25 | AD153: =$AF$39 -> 139.7350993 | AE153: 4869.569533 | AF153: 22371333.77
B154: =$F$32 -> 39.0625 | C154: =$F$39 -> 96.35133211 | D154: 90.71568289 | E154: 31.76054221 | AC154: =$AG$32 -> 39.0625 | AD154: =$AG$39 -> 121.192053 | AE154: 4869.569533 | AF154: 22547088.7
B155: =$G$32 -> 9.765625 | C155: =$G$39 -> 93.95538814 | D155: 91.58273928 | E155: 5.629462605 | AC155: =$AH$32 -> 9.765625 | AD155: =$AH$39 -> 120.5298013 | AE155: 4869.569533 | AF155: 22553378.38
B156: =$H$32 -> 2.44140625 | C156: =$H$39 -> 86.54745349 | D156: 92.44922309 | E156: 34.83088443 | AC156: =$AI$32 -> 2.44140625 | AD156: =$AI$39 -> 98.67549669 | AE156: 4869.569533 | AF156: 22761429.91
B157: =$I$32 -> 0.6103515625 | C157: =$I$39 -> 92.46066075 | D157: 93.31496882 | E157: 0.7298422826 | AC157: =$AJ$32 -> 0.6103515625 | AD157: =$AJ$39 -> 94.70198675 | AE157: 4869.569533 | AF157: 22799360.09
B158: =$J$32 -> 0.1525878906 | C158: =$J$39 -> 88.7473856 | D158: 94.17981152 | E158: 29.51125147 | AC158: =$AK$32 -> 0.1525878906 | AD158: =$AK$39 -> 109.2715232 | AE158: 4869.569533 | AF158: 22660437.14
B159: =$K$32 -> 0.03814697266 | C159: =$K$39 -> 98.31583097 | D159: 95.04358696 | E159: 10.70758087 | AC159: =$AL$32 -> 0.03814697266 | AD159: =$AL$39 -> 117.8807947 | AE159: 4869.569533 | AF159: 22578545.87
E160: =SQRT(AVERAGE(E150:E159)) -> 5.963409732 | AF160: =SQRT(AVERAGE(AF150:AF159)) -> 9516.4487
B162: IC50 | C162: 1198.726433 | AC162: IC50 | AD162: 767.9195303
B163: HillSlope | C163: 0.0005267042711 | AC163: HillSlope | AD163: 0
B164: Top | C164: 183.6036665 | D164: Min | E164: =MIN(D167:D176) -> 91.75054765 | AC164: Top | AD164: 17501.01962 | AE164: Min | AF164: =MIN(AE167:AE176) -> 8750.509808
B165: Bottom | C165: 0 | D165: 50% | E165: =(C164+C165)/2 -> 91.80183326 | AC165: Bottom | AD165: 0 | AE165: 50% | AF165: =(AD164+AD165)/2 -> 8750.509808
A166: Kinase 8 | C166: Raw | D166: Analysis | E166: Sqare difference | AB166: Kinase 8 | AD166: Raw | AE166: Analysis | AF166: Sqare difference
B167: =$B$32 -> 10000 | C167: =$B$40 -> 93.46674752 | D167: =$C$165+($C$164-$C$165)/(1+((B167/$C$162)^$C$163)) -> 91.75054765 | E167: =(C167-D167)^2 -> 2.945341992 | AC167: =$AC$32 -> 10000 | AD167: =$AC$40 -> 37267.34694 | AE167: =$AD$165+($AD$164-$AD$165)/(1+((AC167/$AD$162)^$AD$163)) -> 8750.509808 | AF167: =(AD167-AE167)^2 -> 813210000
B168: =$C$32 -> 2500 | C168: =$C$40 -> 83.03820497 | D168: =$C$165+($C$164-$C$165)/(1+((B168/$C$162)^$C$163)) -> 91.78406299 | E168: =(C168-D168)^2 -> 76.49003248 | AC168: =$AD$32 -> 2500 | AD168: =$AD$40 -> 49078.57143 | AE168: =$AD$165+($AD$164-$AD$165)/(1+((AC168/$AD$162)^$AD$163)) -> 8750.509808 | AF168: =(AD168-AE168)^2 -> 1626352554
B169: =$D$32 -> 625 | C169: =$D$40 -> 93.99434 | D169: 91.81757833 | E169: 4.738291373 | AC169: =$AE$32 -> 625 | AD169: =$AE$40 -> 261.2244898 | AE169: 8750.509808 | AF169: 72067965.21
B170: =$E$32 -> 156.25 | C170: =$E$40 -> 98.55670103 | D170: 91.85109367 | E170: 44.96517008 | AC170: =$AF$32 -> 156.25 | AD170: =$AF$40 -> 173.4693878 | AE170: 8750.509808 | AF170: 73565622.37
B171: =$F$32 -> 39.0625 | C171: =$F$40 -> 100.6852638 | D171: 91.88460899 | E171: 77.45152494 | AC171: =$AG$32 -> 39.0625 | AD171: =$AG$40 -> 138.7755102 | AE171: 8750.509808 | AF171: 74161967.61
B172: =$G$32 -> 9.765625 | C172: =$G$40 -> 82.56721245 | D172: 91.9181243 | E172: 87.43955233 | AC172: =$AH$32 -> 9.765625 | AD172: =$AH$40 -> 122.4489796 | AE172: 8750.509808 | AF172: 74443433.66
B173: =$H$32 -> 2.44140625 | C173: =$H$40 -> 91.11380635 | D173: 91.95163957 | E173: 0.7019645056 | AC173: =$AI$32 -> 2.44140625 | AD173: =$AI$40 -> 124.4897959 | AE173: 8750.509808 | AF173: 74408221.25
B174: =$I$32 -> 0.6103515625 | C174: =$I$40 -> 91.85364868 | D174: 91.9851548 | E174: 0.01729386044 | AC174: =$AJ$32 -> 0.6103515625 | AD174: =$AJ$40 -> 124.4897959 | AE174: 8750.509808 | AF174: 74408221.25
B175: =$J$32 -> 0.1525878906 | C175: =$J$40 -> 87.24479483 | D175: 92.01866998 | E175: 22.78988401 | AC175: =$AK$32 -> 0.1525878906 | AD175: =$AK$40 -> 118.3673469 | AE175: 8750.509808 | AF175: 74513883.47
B176: =$K$32 -> 0.03814697266 | C176: =$K$40 -> 96.49282393 | D176: 92.05218511 | E176: 19.7192732 | AC176: =$AL$32 -> 0.03814697266 | AD176: =$AL$40 -> 95.91836735 | AE176: 8750.509808 | AF176: 74901953
E177: =SQRT(AVERAGE(E167:E176)) -> 5.807394672 | AF177: =SQRT(AVERAGE(AF167:AF176)) -> 17412.73621

Sheet Kinase Strips (hidden)
A3: Strip Composition:
B6: Strip Name | C6: Tube in Strip | D6: Kinase
B7: TK-1 | C7: 1 | D7: EGFR
C8: 2 | D8: HER2
C9: 3 | D9: HER4
C10: 4 | D10: IGF1R
C11: 5 | D11: InsR
C12: 6 | D12: KDR
C13: 7 | D13: PDGFRa
C14: 8 | D14: PDGFRb
B15: TK-2 | C15: 1 | D15: ABL1
C16: 2 | D16: BRK
C17: 3 | D17: BTK
C18: 4 | D18: CSK
C19: 5 | D19: FYN A
C20: 6 | D20: LCK
C21: 7 | D21: LYN B
C22: 8 | D22: SRC
B23: TK-3 | C23: 1 | D23: AXL1
C24: 2 | D24: EPHA1
C25: 3 | D25: FAK
C26: 4 | D26: ITK
C27: 5 | D27: JAK3
C28: 6 | D28: PYK2
C29: 7 | D29: SYK
C30: 8 | D30: TRKA
B31: CMGC-1 | C31: 1 | D31: ERK2
C32: 2 | D32: GSK3b
C33: 3 | D33: JNK1
C34: 4 | D34: JNK3
C35: 5 | D35: p38a
C36: 6 | D36: p38b
C37: 7 | D37: p38d
C38: 8 | D38: p38g
B39: CMGC-2 | C39: 1 | D39: CDK1/CyclinA2
C40: 2 | D40: CDK2/CyclinE1
C41: 3 | D41: CDK3/CyclinE1
C42: 4 | D42: CDK5/p25
C43: 5 | D43: CDK5/p35
C44: 6 | D44: CDK6/Cyclin D3
C45: 7 | D45: CDK9/Cyclin K
C46: 8 | D46: CLK3
B47: AGC-1 | C47: 1 | D47: AKT1
C48: 2 | D48: p70S6Kb
C49: 3 | D49: PDK1
C50: 4 | D50: PKA
C51: 5 | D51: PKC
C52: 6 | D52: PRKG1
C53: 7 | D53: ROCK1
C54: 8 | D54: RSK2
B55: AGC-2 | C55: 1 | D55: PKCa
C56: 2 | D56: PKCb II
C57: 3 | D57: PKCd
C58: 4 | D58: PKCe
C59: 5 | D59: PKCg
C60: 6 | D60: PKCi
C61: 7 | D61: PKCtheta
C62: 8 | D62: PKCz
B63: CAMK-1 | C63: 1 | D63: CHK1
C64: 2 | D64: CHK2
C65: 3 | D65: MAPKAPK2
C66: 4 | D66: MARK1
C67: 5 | D67: MELK
C68: 6 | D68: PASK
C69: 7 | D69: PIM1
C70: 8 | D70: PKCmu (PKD1)
B71: Other/CK-1 | C71: 1 | D71: Aurora A
C72: 2 | D72: Aurora B
C73: 3 | D73: CK2a1
C74: 4 | D74: DNA-PK
C75: 5 | D75: CK1α1
C76: 6 | D76: CK1epsilon
C77: 7 | D77: CK1g1
C78: 8 | D78: VRK2
B79: TKL-1 | C79: 1 | D79: ALK2
C80: 2 | D80: ALK4
C81: 3 | D81: IRAK4
C82: 4 | D82: MLK2
C83: 5 | D83: RIPK2
C84: 6 | D84: TAK1-TAB1
C85: 7 | D85: TGFβR2
C86: 8 | D86: ZAK
B87: STE-1 | C87: 1 | D87: ASK1
C88: 2 | D88: HPK1
C89: 3 | D89: MINK1
C90: 4 | D90: MST1
C91: 5 | D91: NIK
C92: 6 | D92: PAK1/CDC42
C93: 7 | D93: PAK3
C94: 8 | D94: TNIK
A95: Second Launch - Still not complete | B95: CAMK-2 | C95: 1 | D95: AMPK A1/B1/G1
C96: 2 | D96: AMPK A1/B1/G2
C97: 3 | D97: AMPK A2/B1/G1
C98: 4 | D98: CAMK2a
C99: 5 | D99: CAMK2g
C100: 6 | D100: CAMK4
C101: 7 | D101: DAPK1
C102: 8 | D102: STK33
B103: TK-4 | C103: 1 | D103: c-MER
C104: 2 | D104: FGFR1
C105: 3 | D105: FGFR2
C106: 4 | D106: FGFR4
C107: 5 | D107: FLT1
C108: 6 | D108: FMS
C109: 7 | D109: MET
C110: 8 | D110: RET
B111: Other-2 | C111: 1 | D111: CDC7/DBF4
C112: 2 | D112: EIF2AK2
C113: 3 | D113: IKKb
C114: 4 | D114: NEK2
C115: 5 | D115: NEK3
C116: 6 | D116: PLK1
C117: 7 | D117: TBK1
C118: 8 | D118: ULK1
B119: GP-1 | C119: 1 | D119: FGFR1
C120: 2 | D120: JAK3
C121: 3 | D121: LCK
C122: 4 | D122: SYK
C123: 5 | D123: MINK1
C124: 6 | D124: PAK1/CDC42
C125: 7 | D125: IRAK4
C126: 8 | D126: TAK1-TAB1
B127: GP-2 | C127: 1 | D127: CDK2/CyclinE1
C128: 2 | D128: GSK3b
C129: 3 | D129: p38a
C130: 4 | D130: AMPK A1/B1/G2
C131: 5 | D131: CAMK4
C132: 6 | D132: CHK1
C133: 7 | D133: DAPK1
C134: 8 | D134: MAPKAPK2
B135: GP-3 | C135: 1 | D135: AKT1
C136: 2 | D136: PKCa
C137: 3 | D137: ROCK1
C138: 4 | D138: Aurora A
C139: 5 | D139: CK2a1
C140: 6 | D140: IKKb
C141: 7 | D141: CK1a1
C142: 8 | D142: CK1g1
